Workbook

Sheet Curve Fitting (hidden)
E1: BL-074, BL-076 | I1: BL-077, BL-078 | O1: BL-079, BL-080
E2: [SM]0 | F2: 80 mM | I2: [SM]0 | J2: 40 mM | O2: [SM]0 | P2: 20 mM
E3: [PhCO2H]0 | F3: 96 mM | I3: [PhCO2H]0 | J3: 56 mM | O3: [PhCO2H]0 | P3: 36 mM | Y3: exp3 sm | AA3: exp2 sm | AC3: exp1 sm | AF3: exp3 p | AH3: exp2 p | AJ3: exp 1 p
E4: [PhCONHBr]0 | F4: 96 mM | G4: t1/2 (SM) | I4: [PhCONHBr]0 | J4: 56 mM | L4: t1/2 (SM) | O4: [PhCONHBr]0 | P4: 36 mM | X4: A | Y4: -21.16598252 | AA4: -41.02026859 | AD4: -81.11012035 | AF4: 24.76445876 | AH4: 50.81970599 | AJ4: 160.5360448
E5: [(DHQD)2PHAL]0 | F5: 8 mM | I5: [(DHQD)2PHAL]0 | J5: 8 mM | O5: [(DHQD)2PHAL]0 | P5: 8 mM | X5: k | Y5: 8.618862754 | AA5: 5.689832247 | AD5: 3.512695462 | AF5: 0.02737200907 | AH5: 0.0093480617 | AJ5: 0.003442648369
E6: [(4-Tol)2CO]0 | F6: 40 mM | I6: [(4-Tol)2CO]0 | J6: 40 mM | O6: [(4-Tol)2CO]0 | P6: 40 mM | X6: n | Y6: -0.5307537443 | AA6: -0.4885651444 | AD6: -0.4633591097 | AF6: 1.285297573 | AH6: 1.334915505 | AJ6: 1.19912602
E7: [P]0 (83:17 er) | F7: 0 mM | I7: [P]0 (83:17 er) | J7: 0 mM | O7: [P]0 (83:17 er) | P7: 40 mM
E8: [PhCONH2]0 | F8: 0 mM | I8: [PhCONH2]0 | J8: 0 mM | O8: [PhCONH2]0 | P8: 0 mM | X8: t1/2 (SM) | Y8: =(-LN(((R12/2)/$Y$4)+1)/$Y$5)^(1/$Y$6) -> 112.0406698 | AA8: =(-LN(((L12/2)/$AA$4)+1)/$AA$5)^(1/$AA$6) -> 73.40599089 | AD8: =(-LN(((F12/2)/$AD$4)+1)/$AD$5)^(1/$AD$6) -> 33.08269507 | AF8: =(-LN(1-($R$12/2)/$AF$4)/$AF$5)^(1/$AF$6) -> 10.55265672 | AH8: =(-LN(1-($L$12/2)/$AH$4)/$AH$5)^(1/$AH$6) -> 20.28983364 | AJ8: =(-LN(1-($F$12/2)/$AJ$4)/$AJ$5)^(1/$AJ$6) -> 40.52286387
E10: Experiment 1 | I10: Experiment 2 | O10: Experiment 3
E11: t (minutes) | F11: [SM] (mM) | G11: [P] (mM) | H11: ln([SM]/[SM]0) | I11: t (minutes) | J11: shifted t, SM | K11: shifted t, P | L11: [SM] (mM) | M11: [P] (mM) | N11: ln([SM]/[SM]0) | O11: t (minutes) | P11: shifted t, SM | Q11: shifted t, P | R11: [SM] (mM) | S11: [P] (mM) | T11: ln([SM]/[SM]0) | Y11: Y_fit ([SM]) = -A*(1-exp(-k*t^n)) | Z11: residual^2 | AA11: Y_fit ([SM]) = -A*(1-exp(-k*t^n)) | AB11: residual^2 | AC11: Y_fit ([SM]) = -A*(1-exp(-k*t^n)) | AD11: residual^2 | AE11: Y_fit ([SM]) = A*(1-exp(-k*t^n)) | AF11: residual^2 | AG11: Y_fit ([SM]) = A*(1-exp(-k*t^n)) | AH11: residual^2 | AI11: Y_fit ([SM]) = A*(1-exp(-k*t^n)) | AJ11: residual^2
B12: shifted t, SM | D12: 31 | E12: 0 | F12: 81.2 | G12: 0 | H12: =LN(F12/$F$12) -> 0 | I12: 0 | J12: =I12+$C$12 -> 0 | K12: =I12+$C$13 -> 0 | L12: 41.2 | M12: =0+$C$14 -> 0 | N12: =LN(L12/$L$12) -> 0 | O12: 0 | P12: =O12+$C$15 -> 0 | Q12: =O12+$C$16 -> 0 | R12: 21.4 | S12: =0+$C$17 -> 0 | T12: =LN(R12/$R$12) -> 0 | Y12: =-$Y$4*(1-EXP(-$Y$5*(P12+1E-50)^$Y$6)) -> 21.16598252 | Z12: =(R12-Y12)^2 -> 0.05476417899 | AA12: =-$AA$4*(1-EXP(-$AA$5*(J12+1E-50)^$AA$6)) -> 41.02026859 | AB12: =(L12-AA12)^2 -> 0.03230337813 | AC12: =-$AD$4*(1-EXP(-$AD$5*(E12+1E-50)^$AD$6)) -> 81.11012035 | AD12: =(F12-AC12)^2 -> 0.008078351843 | AE12: =$AF$4*(1-EXP(-$AF$5*(S12+1E-50)^$AF$6)) -> 0 | AF12: =(S12-AE12)^2 -> 0 | AG12: =$AH$4*(1-EXP(-$AH$5*(M12+1E-50)^$AH$6)) -> 0 | AH12: =(M12-AG12)^2 -> 0 | AI12: =$AJ$4*(1-EXP(-$AJ$5*(G12+1E-50)^$AJ$6)) -> 0 | AJ12: =(G12-AI12)^2 -> 0
B13: shifted t, P | D13: 31 | E13: 15 | F13: 50.49566764 | G13: 29.77267035 | H13: =LN(F13/$F$12) -> -0.4750277039 | I13: 15 | J13: 15 | K13: =I13+$C$13 -> 15 | L13: 31.08179487 | M13: =10.6210185340732+$C$14 -> 10.62101853 | N13: =LN(L13/$L$12) -> -0.2818159824 | O13: 15 | P13: =O13+$C$15 -> 15 | Q13: =O13+$C$16 -> 15 | R13: 17.88647518 | S13: =3.217275508169+$C$17 -> 3.217275508 | T13: =LN(R13/$R$12) -> -0.179346071 | Y13: =-$Y$4*(1-EXP(-$Y$5*P13^$Y$6)) -> 18.43450571 | Z13: 0.3003374607 | AA13: =-$AA$4*(1-EXP(-$AA$5*(J13)^$AA$6)) -> 32.00649697 | AB13: 0.8550739606 | AC13: =-$AD$4*(1-EXP(-$AD$5*(E13)^$AD$6)) -> 51.31863767 | AD13: 0.6772796751 | AE13: =$AF$4*(1-EXP(-$AF$5*(S13+1E-50)^$AF$6)) -> 2.864132666 | AF13: =(S13-AE13)^2 -> 0.1247098667 | AG13: =$AH$4*(1-EXP(-$AH$5*(M13+1E-50)^$AH$6)) -> 9.997656264 | AH13: =(M13-AG13)^2 -> 0.38858052 | AI13: =$AJ$4*(1-EXP(-$AJ$5*(G13+1E-50)^$AJ$6)) -> 29.29182739 | AJ13: =(G13-AI13)^2 -> 0.2312099466
B14: shifted [P] (mM) | D14: 40 | E14: 30 | F14: 41.72976968 | G14: 37.55471399 | H14: -0.665700472 | I14: 30 | J14: 30 | K14: 30 | L14: 27.35501977 | M14: =14.7003413123808+$C$14 -> 14.70034131 | N14: -0.409538206 | O14: 30 | P14: 30 | Q14: 30 | R14: 15.74833146 | S14: =5.14384721284062+$C$17 -> 5.143847213 | T14: -0.3066565015 | Y14: 16.03604475 | Z14: 0.08277894067 | AA14: 27.09016803 | AB14: 0.07014644582 | AC14: 41.88323135 | AD14: 0.02355048501 | AE14: 4.982889065 | AF14: 0.02590752546 | AG14: 14.57782321 | AH14: 0.01501068482 | AI14: 37.51243759 | AJ14: 0.001787293517
B15: shifted t, SM | D15: 95 | E15: 45 | F15: 36.92775649 | G15: 42.06821305 | H15: -0.7879517705 | I15: 45 | J15: 45 | K15: 45 | L15: 24.22362843 | M15: =17.0757071003981+$C$14 -> 17.0757071 | N15: -0.5311097182 | O15: 45 | P15: 45 | Q15: 45 | R15: 14.59082312 | S15: =6.37228506338429+$C$17 -> 6.372285063 | T15: -0.3829981446 | Y15: 14.41617686 | Z15: 0.03050131656 | AA15: 24.1062921 | AB15: 0.01376781364 | AC15: 36.68567811 | AD15: 0.05860194218 | AE15: 6.34212429 | AF15: 0.0009096722766 | AG15: 17.19080041 | AH15: 0.01324647028 | AI15: 42.19439291 | AJ15: 0.01592135614
B16: shifted t, P | D16: 95 | E16: 60 | F16: 34.01608545 | G16: 44.66357897 | H16: -0.8700817329 | I16: 60 | J16: 60 | K16: 60 | L16: 22.38473515 | M16: =18.7931401070885+$C$14 -> 18.79314011 | N16: -0.6100589965 | O16: 60 | P16: 60 | Q16: 60 | R16: 13.48594483 | S16: =7.37527033876866+$C$17 -> 7.375270339 | T16: -0.4617429024 | Y16: 13.23046213 | Z16: 0.06527141257 | AA16: 22.02283648 | AB16: 0.1309706483 | AC16: 33.2194739 | AD16: 0.63458996 | AE16: 7.434848297 | AF16: 0.003549533061 | AG16: 19.0334017 | AH16: 0.05772563138 | AI16: 44.84999627 | AJ16: 0.03475140982
B17: shifted [P] (mM) | D17: 60 | E17: 90 | F17: 29.3485746 | G17: 48.7125403 | H17: -1.017671268 | I17: 90 | J17: 90 | K17: 90 | L17: 19.71731727 | M17: =21.2697845967899+$C$14 -> 21.2697846 | N17: -0.7369409577 | O17: 90 | P17: 90 | Q17: 90 | R17: 11.91439829 | S17: =8.7257814937178+$C$17 -> 8.725781494 | T17: -0.5856433127 | Y17: 11.57042085 | Z17: 0.1183204815 | AA17: 19.20441223 | AB17: 0.2630715742 | AC17: 28.69648233 | AD17: 0.4252243197 | AE17: 8.864910704 | AF17: 0.01935693714 | AG17: 21.60379447 | AH17: 0.1115625959 | AI17: 48.93285062 | AJ17: 0.04853663492
E18: 120 | F18: 26.14088596 | G18: 51.21127286 | H18: -1.133414647 | I18: 120 | J18: 120 | K18: 120 | L18: 17.45791795 | M18: =22.7769723164391+$C$14 -> 22.77697232 | N18: -0.8586449597 | O18: 120 | P18: 120 | Q18: 120 | R18: 10.7169127 | S18: =9.59514621798861+$C$17 -> 9.595146218 | T18: -0.6915678022 | Y18: 10.43299578 | Z18: 0.08060881532 | AA18: 17.32131937 | AB18: 0.01865917412 | AC18: 25.76112186 | AD18: 0.1442207744 | AE18: 9.753832457 | AF18: 0.02518132257 | AG18: 23.11124534 | AH18: 0.1117384564 | AI18: 51.41323223 | AJ18: 0.04078758553
E19: 180 | F19: 22.59941754 | G19: 54.40459119 | H19: -1.278991114 | I19: 180 | J19: 180 | K19: 180 | L19: 15.2115839 | M19: =25.0156102727655+$C$14 -> 25.01561027 | N19: -0.9963810199 | O19: 180 | P19: 180 | Q19: 180 | R19: 9.278592263 | S19: =11.0141146363754+$C$17 -> 11.01411464 | T19: -0.8356810826 | Y19: 8.924809217 | Z19: 0.1251624433 | AA19: 14.86565869 | AB19: 0.1196642524 | AC19: 22.01702837 | AD19: 0.3391771487 | AE19: 11.14286588 | AF19: 0.01657688384 | AG19: 25.26362899 | AH19: 0.06151328477 | AI19: 54.53677781 | AJ19: 0.01747330291
E20: 240 | F20: 19.47324451 | G20: 56.80800034 | H20: -1.4278738 | I20: 240 | J20: 240 | K20: 240 | L20: 13.37626834 | M20: =26.5092700746549+$C$14 -> 26.50927007 | N20: -1.124956139 | O20: 240 | P20: 240 | Q20: 240 | R20: 7.973791846 | S20: =11.8367164536655+$C$17 -> 11.83671645 | T20: -0.9872307775 | Y20: 7.937855132 | Z20: 0.001291447407 | AA20: 13.27583363 | AB20: 0.0100871303 | AC20: 19.63474789 | AD20: 0.02608334286 | AE20: 11.91020515 | AF20: 0.005400588734 | AG20: 26.63928341 | AH20: 0.0169034683 | AI20: 56.85201554 | AJ20: 0.001937337719
E21: 300 | F21: 17.75539983 | G21: 57.92784223 | H21: -1.520225562 | I21: 300 | J21: 300 | K21: 300 | L21: 12.05348375 | M21: =27.5018570311999+$C$14 -> 27.50185703 | N21: -1.22908453 | O21: 300 | P21: 300 | Q21: 300 | R21: 7.19520574 | S21: =12.5957367190259+$C$17 -> 12.59573672 | T21: -1.089975987 | Y21: 7.224828282 | Z21: 0.0008774950002 | AA21: 12.13233578 | AB21: 0.006217643042 | AC21: 17.937997 | AD21: 0.03334172602 | AE21: 12.59240126 | AF21: 1.112529229e-05 | AG21: 27.52589183 | AH21: 0.0005776715187 | AI21: 57.92002559 | AJ21: 6.109992712e-05
E22: 360 | F22: 16.10814151 | G22: 59.41377798 | H22: -1.617590419 | I22: 360 | J22: 360 | K22: 360 | L22: 11.03721504 | M22: =28.3242661263123+$C$14 -> 28.32426613 | N22: -1.317165508 | O22: 360 | P22: 360 | Q22: 360 | R22: 6.506865492 | S22: =13.1340536386762+$C$17 -> 13.13405364 | T22: -1.190533073 | Y22: 6.677453756 | Z22: 0.02910035571 | AA22: 11.25604652 | AB22: 0.04788721668 | AC22: 16.64584471 | AD22: 0.2891247333 | AE22: 13.06091403 | AF22: 0.005349403063 | AG22: 28.24359633 | AH22: 0.006507615378 | AI22: 59.32645 | AJ22: 0.007626176507
E23: 420 | F23: 15.0031994 | G23: 60.66807555 | H23: -1.688651775 | I23: 420 | J23: 420 | K23: 420 | L23: 10.13929083 | M23: =29.1856674881565+$C$14 -> 29.18566749 | N23: -1.402020198 | O23: 420 | P23: 420 | Q23: 420 | R23: 5.84807052 | S23: =13.4998056079374+$C$17 -> 13.49980561 | T23: -1.297279141 | Y23: 6.239546035 | Z23: 0.153253079 | AA23: 10.55531262 | AB23: 0.1730741242 | AC23: 15.61697179 | AD23: 0.3767165409 | AE23: 13.37191815 | AF23: 0.016355203 | AG23: 28.97879149 | AH23: 0.04279767755 | AI23: 60.50398788 | AJ23: 0.02692476521
E24: 480 | F24: 14.07329365 | G24: 61.64019553 | H24: -1.752636313 | I24: 480 | J24: 480 | K24: 480 | L24: 9.31298226 | M24: =29.4961199843847+$C$14 -> 29.49611998 | N24: -1.487028888 | O24: 480 | P24: 480 | Q24: 480 | R24: 5.415243015 | S24: =13.8768765706848+$C$17 -> 13.87687657 | T24: -1.374173165 | Y24: 5.878565611 | Z24: 0.2146678285 | AA24: 9.977516635 | AB24: 0.4416059351 | AC24: 14.77119849 | AD24: 0.4870711583 | AE24: 13.68632111 | AF24: 0.03631138519 | AG24: 29.23959563 | AH24: 0.06580474398 | AI24: 61.41048083 | AJ24: 0.05276884281
W26: log[SM]/[SM]0 | Z26: =SUM(Z12:Z24) -> 1.256935255 | AB26: =SUM(AB12:AB24) -> 2.182529296 | AD26: 3.523060158 | AF26: =SUM(AF12:AF24) -> 0.2796194463 | AH26: =SUM(AH12:AH24) -> 0.8919688203 | AJ26: =SUM(AJ12:AJ24) -> 0.4797857516
Y28: t
E65: Experiment 1 | J65: Experiment 2 | O65: Experiment 3
E66: [P]n - [P]n-1 | F66: [SM]n-1 - [SM]n | G66: subtraction | I66: [SM]0 - [P]n - [SM]n | J66: [P]n - [P]n-1 | K66: [SM]n-1 - [SM]n | L66: subtraction | M66: [SM]0 - [P]n + [SM]n | O66: [P]n - [P]n-1 | P66: [SM]n-1 - [SM]n | Q66: subtraction | R66: [SM]0 - [P]n - [SM]n
E67: =G13-G12 -> 29.77267035 | F67: =F12-F13 -> 30.70433236 | G67: =F67-E67 -> 0.9316620128 | I67: =$F$12-(F12+G12) -> 0 | J67: =M13-M12 -> 10.62101853 | K67: =L12-L13 -> 10.11820513 | L67: =K67-J67 -> -0.5028134087 | M67: =($L$12+$C$14)-(L12+M12) -> 0 | O67: =S13-S12 -> 3.217275508 | P67: =R12-R13 -> 3.513524815 | Q67: =P67-O67 -> 0.2962493072 | R67: =($R$12+$C$17)-S12-R12 -> 0
E68: =G14-G13 -> 7.782043638 | F68: =F13-F14 -> 8.765897965 | G68: =F68-E68 -> 0.9838543265 | I68: =$F$12-(F13+G13) -> 0.9316620128 | J68: 4.079322778 | K68: 3.7267751 | L68: =K68-J68 -> -0.3525476781 | M68: -0.5028134087 | O68: =S14-S13 -> 1.926571705 | P68: =R13-R14 -> 2.138143726 | Q68: =P68-O68 -> 0.2115720218 | R68: 0.2962493072
E69: =G15-G14 -> 4.513499066 | F69: =F14-F15 -> 4.802013184 | G69: 0.2885141188 | I69: 1.915516339 | J69: 2.375365788 | K69: 3.131391347 | L69: 0.7560255586 | M69: -0.8553610868 | O69: 1.228437851 | P69: 1.157508341 | Q69: -0.07092950951 | R69: 0.507821329
E70: =G16-G15 -> 2.595365921 | F70: =F15-F16 -> 2.911671039 | G70: 0.316305118 | I70: 2.204030458 | J70: 1.717433007 | K70: 1.838893281 | L70: 0.1214602744 | M70: -0.09933552822 | O70: 1.002985275 | P70: 1.104878284 | Q70: 0.101893009 | R70: 0.4368918195
E71: 4.048961329 | F71: 4.667510856 | G71: 0.6185495273 | I71: 2.520335576 | J71: 2.47664449 | K71: 2.667417879 | L71: 0.1907733898 | M71: 0.02212474622 | O71: 1.350511155 | P71: 1.571546539 | Q71: 0.2210353842 | R71: 0.5387848285
E72: 2.498732563 | F72: 3.207688637 | G72: 0.7089560734 | I72: 3.138885103 | J72: 1.50718772 | K72: 2.259399313 | L72: 0.7522115937 | M72: 0.212898136 | O72: 0.8693647243 | P72: 1.197485593 | Q72: 0.3281208686 | R72: 0.7598202127
E73: 3.193318327 | F73: 3.541468414 | G73: 0.3481500866 | I73: 3.847841177 | J73: 2.238637956 | K73: 2.246334051 | L73: 0.007696095154 | M73: 0.9651097297 | O73: 1.418968418 | P73: 1.438320438 | Q73: 0.01935201984 | R73: 1.087941081
E74: 2.403409147 | F74: 3.126173035 | G74: 0.7227638884 | I74: 4.195991263 | J74: 1.493659802 | K74: 1.835315564 | L74: 0.3416557625 | M74: 0.9728058248 | O74: 0.8226018173 | P74: 1.304800417 | Q74: 0.4821985992 | R74: 1.107293101
E75: 1.119841894 | F75: 1.717844682 | G75: 0.5980027876 | I75: 4.918755152 | J75: 0.9925869565 | K75: 1.322784587 | L75: 0.3301976306 | M75: 1.314461587 | O75: 0.7590202654 | P75: 0.7785861056 | Q75: 0.01956584026 | R75: 1.5894917
E76: 1.485935749 | F76: 1.647258318 | G76: 0.1613225694 | I76: 5.516757939 | J76: 0.8224090951 | K76: 1.016268713 | L76: 0.1938596175 | M76: 1.644659218 | O76: 0.5383169197 | P76: 0.6883402482 | Q76: 0.1500233286 | R76: 1.609057541
E77: 1.25429757 | F77: 1.104942108 | G77: -0.1493554619 | I77: 5.678080509 | J77: 0.8614013618 | K77: 0.8979242057 | L77: 0.03652284382 | M77: 1.838518835 | O77: 0.3657519693 | P77: 0.6587949723 | Q77: 0.293043003 | R77: 1.759080869
E78: 0.9721199777 | F78: 0.929905749 | G78: -0.04221422873 | I78: 5.528725047 | J78: 0.3104524962 | K78: 0.8263085726 | L78: 0.5158560764 | M78: 1.875041679 | O78: 0.3770709627 | P78: 0.4328275051 | Q78: 0.05575654235 | R78: 2.052123872
G79: cant be negative | L79: cant be negative

Sheet P inhibition, or deactivation
D1: BL-405, BL-413 + BL-443 | G1: BL-408 | L1: BL-409, BL-413
D2: [SM]0 | E2: 80 mM | G2: [SM]0 | H2: 40 mM | L2: [SM]0 | M2: 60 mM
D3: [PhCO2H]0 | E3: 400 mM | G3: [PhCO2H]0 | H3: 360 mM | L3: [PhCO2H]0 | M3: 380 mM
D4: [NBS]0 | E4: 96 mM | G4: [NBS]0 | H4: 56 mM | L4: [NBS]0 | M4: 76 mM
D5: [(RO)2PO2H]0 | E5: 8 mM | G5: [(RO)2PO2H]0 | H5: 8 mM | L5: [(RO)2PO2H]0 | M5: 8 mM
D6: [(4-Tol)2CO]0 | E6: 40 mM | G6: [(4-Tol)2CO]0 | H6: 40 mM | L6: [(4-Tol)2CO]0 | M6: 40 mM | N6: ← internal standard
D7: [P]0 (50:50 er) | E7: 0 mM | G7: [P]0 (50:50 er) | H7: 0 mM | L7: [P]0 (50:50 er) | M7: 0 mM
D8: [succinimide]0 | E8: 0 mM | G8: [succinimide]0 | H8: 0 mM | L8: [succinimide]0 | M8: 0 mM
D10: Experiment 1 | G10: Experiment 2 | L10: Experiment 3
D11: t (hours) | E11: er | F11: [P] (mM) | G11: t (hours) | H11: shifted t, SM | I11: shifted t, P | J11: [P] (mM) | K11: [P] + 40 (mM) | L11: t (hours) | M11: shifted t, SM | N11: shifted t, P | O11: [P] (mM) | P11: [P] + 20 (mM)
D12: =0/60 -> 0 | F12: 0 | G12: =0/60 -> 0 | I12: =G12+$B$13 -> 2.5 | J12: 0 | K12: =J12+$B$14 -> 40 | L12: =0/60 -> 0 | N12: =L12+$B$15 -> 0.8833333333 | O12: 0 | P12: =O12+$B$16 -> 19.5
A13: shifted t, P | B13: =150/60 -> 2.5 | D13: =2.5/60 -> 0.04166666667 | E13: 58 | F13: 3.98704226 | G13: =15/60 -> 0.25 | I13: =G13+$B$13 -> 2.75 | J13: 4.468538121 | K13: =J13+$B$14 -> 44.46853812 | L13: =15/60 -> 0.25 | N13: =L13+$B$15 -> 1.133333333 | O13: 7.91883797 | P13: =O13+$B$16 -> 27.41883797
A14: shifted [P] (mM) | B14: 40 | D14: =4/60 -> 0.06666666667 | E14: 59 | F14: 4.765385596 | G14: =30/60 -> 0.5 | I14: =G14+$B$13 -> 3 | J14: 6.999794242 | K14: 46.99979424 | L14: =30/60 -> 0.5 | N14: 1.383333333 | O14: 11.8841093 | P14: 31.3841093
A15: shifted t, P | B15: =53/60 -> 0.8833333333 | D15: =7.5/60 -> 0.125 | E15: 60 | F15: 7.228659223 | G15: =60/60 -> 1 | I15: =G15+$B$13 -> 3.5 | J15: 10.7950972 | K15: 50.7950972 | L15: =60/60 -> 1 | N15: 1.883333333 | O15: 16.65830245 | P15: 36.15830245
A16: shifted [P] (mM) | B16: 19.5 | D16: =15/60 -> 0.25 | E16: 60 | F16: 11.28373822 | G16: =90/60 -> 1.5 | I16: 4 | J16: 13.35689879 | K16: 53.35689879 | L16: =90/60 -> 1.5 | N16: 2.383333333 | O16: 19.81825476 | P16: 39.31825476
D17: =30/60 -> 0.5 | E17: 60 | F17: 15.93759965 | G17: =120/60 -> 2 | I17: 4.5 | J17: 14.99910583 | K17: 54.99910583 | L17: =120/60 -> 2 | N17: 2.883333333 | O17: 21.93869887 | P17: 41.43869887
D18: =45/60 -> 0.75 | E18: 60 | F18: 19.33692359 | G18: =180/60 -> 3 | I18: 5.5 | J18: 17.78108846 | K18: 57.78108846 | L18: =180/60 -> 3 | N18: 3.883333333 | O18: 24.7354727 | P18: 44.2354727
D19: =60/60 -> 1 | E19: 60 | F19: 21.30960274 | G19: =240/60 -> 4 | I19: 6.5 | J19: 19.64151394 | K19: 59.64151394 | L19: =240/60 -> 4 | N19: 4.883333333 | O19: 26.51705443 | P19: 46.01705443
D20: =90/60 -> 1.5 | E20: 60 | F20: 23.80324453 | G20: =300/60 -> 5 | I20: 7.5 | J20: 21.33327833 | K20: 61.33327833 | L20: =300/60 -> 5 | N20: 5.883333333 | O20: 27.81036031 | P20: 47.31036031
D21: =120/60 -> 2 | E21: 60 | F21: 25.96426247 | G21: =360/60 -> 6 | I21: 8.5 | J21: 22.00032149 | K21: 62.00032149 | L21: =360/60 -> 6 | N21: 6.883333333 | O21: 29.07801916 | P21: 48.57801916
D22: =180/60 -> 3 | E22: 60 | F22: 28.1740444 | G22: =420/60 -> 7 | I22: 9.5 | J22: 23.18606047 | K22: 63.18606047 | L22: =420/60 -> 7 | N22: 7.883333333 | O22: 29.78233074 | P22: 49.28233074
D23: =240/60 -> 4 | E23: 60 | F23: 29.69908159 | G23: =480/60 -> 8 | I23: 10.5 | J23: 23.9402964 | K23: 63.9402964 | L23: =480/60 -> 8 | N23: 8.883333333 | O23: 30.3434596 | P23: 49.8434596
D24: =300/60 -> 5 | E24: 60 | F24: 30.79042491
D25: =360/60 -> 6 | E25: 60 | F25: 31.21317415
D26: =420/60 -> 7 | E26: 60 | F26: 31.61273007
D27: =480/60 -> 8 | E27: 60 | F27: 31.67112577
M55: =0.2979/0.0707 -> 4.213578501
M56: =0.5279/0.1315 -> 4.014448669

Sheet P spiked reactions
D1: BL-415 | I1: BL-416 | N1: BL-414
D2: [SM]0 | E2: 60 mM | I2: [SM]0 | J2: 60 mM | N2: [SM]0 | O2: 60 mM
D3: [PhCO2H]0 | E3: 380 mM | I3: [PhCO2H]0 | J3: 380 mM | N3: [PhCO2H]0 | O3: 380 mM
D4: [NBS]0 | E4: 76 mM | I4: [NBS]0 | J4: 76 mM | N4: [NBS]0 | O4: 76 mM
D5: [(RO)2PO2H]0 | E5: 8 mM | I5: [(RO)2PO2H]0 | J5: 8 mM | N5: [(RO)2PO2H]0 | O5: 8 mM
D6: [(4-Tol)2CO]0 | E6: 40 mM | F6: ← internal standard | I6: [(4-Tol)2CO]0 | J6: 40 mM | K6: ← internal standard | N6: [(4-Tol)2CO]0 | O6: 40 mM | P6: ← internal standard
D7: [P]0 (50:50 er) | E7: 20 mM | I7: [P]0 (50:50 er) | J7: 20 mM | N7: [P]0 (50:50 er) | O7: 0 mM
D8: [succinimide]0 | E8: 20 mM | I8: [succinimide]0 | J8: 0 mM | N8: [succinimide]0 | O8: 20 mM
D10: Experiment 4 | I10: Experiment 5 | N10: Experiment 6
D11: t (hours) | E11: shifted t, SM | F11: shifted t, P | G11: [P] (mM) | H11: [P] + X (mM) | I11: t (hours) | J11: shifted t, SM | K11: shifted t, P | L11: [P] (mM) | M11: [P] + X (mM) | N11: t (hours) | O11: shifted t, SM | P11: shifted t, P | Q11: [P] (mM) | R11: [P] + 20 (mM)
A12: shifted t, P | B12: =53/60 -> 0.8833333333 | D12: =0/60 -> 0 | F12: =D12+$B$12 -> 0.8833333333 | G12: 20 | H12: =G12+$B$13 -> 20 | I12: =0/60 -> 0 | K12: =I12+$B$14 -> 0.8833333333 | L12: 20 | M12: =L12+$B$15 -> 20 | N12: =0/60 -> 0 | P12: =N12+$B$16 -> 0.8833333333 | Q12: 0 | R12: =Q12+$B$17 -> 19.5
A13: shifted [P] (mM) | B13: 0 | D13: =11.25/60 -> 0.1875 | F13: =D13+$B$12 -> 1.070833333 | G13: 24.35950548 | H13: 24.35950548 | I13: =3.75/60 -> 0.0625 | K13: =I13+$B$14 -> 0.9458333333 | L13: 22.43150078 | M13: =L13+$B$15 -> 22.43150078 | N13: =7.5/60 -> 0.125 | P13: =N13+$B$16 -> 1.008333333 | Q13: 4.88177001 | R13: =Q13+$B$17 -> 24.38177001
A14: shifted t, P | B14: =53/60 -> 0.8833333333 | D14: =26.25/60 -> 0.4375 | F14: 1.320833333 | G14: 29.0145863 | H14: 29.0145863 | I14: =18.75/60 -> 0.3125 | K14: 1.195833333 | L14: 28.29056395 | M14: 28.29056395 | N14: =22.5/60 -> 0.375 | P14: 1.258333333 | Q14: 9.797059423 | R14: 29.29705942
A15: shifted [P] (mM) | B15: 0 | D15: =52.5/60 -> 0.875 | F15: 1.758333333 | G15: 33.38385111 | H15: 33.38385111 | I15: =37.5/60 -> 0.625 | K15: 1.508333333 | L15: 32.43589877 | M15: 32.43589877 | N15: =45/60 -> 0.75 | P15: 1.633333333 | Q15: 14.43951441 | R15: 33.93951441
A16: shifted t, P | B16: =53/60 -> 0.8833333333 | D16: =82.5/60 -> 1.375 | F16: 2.258333333 | G16: 37.15134317 | H16: 37.15134317 | I16: =67.5/60 -> 1.125 | K16: 2.008333333 | L16: 36.4001563 | M16: 36.4001563 | N16: =75/60 -> 1.25 | P16: 2.133333333 | Q16: 18.30101855 | R16: 37.80101855
A17: shifted [P] (mM) | B17: 19.5 | D17: =112.5/60 -> 1.875 | F17: 2.758333333 | G17: 38.97385903 | H17: 38.97385903 | I17: =97.5/60 -> 1.625 | K17: 2.508333333 | L17: 38.91539977 | M17: 38.91539977 | N17: =105/60 -> 1.75 | P17: 2.633333333 | Q17: 20.71673876 | R17: 40.21673876
D18: =165/60 -> 2.75 | F18: 3.633333333 | G18: 41.54889578 | H18: 41.54889578 | I18: =135/60 -> 2.25 | K18: 3.133333333 | L18: 41.57818366 | M18: 41.57818366 | N18: =150/60 -> 2.5 | P18: 3.383333333 | Q18: 23.20010197 | R18: 42.70010197
D19: =225/60 -> 3.75 | F19: 4.633333333 | G19: 43.76679918 | H19: 43.76679918 | I19: =195/60 -> 3.25 | K19: 4.133333333 | L19: 43.94061673 | M19: 43.94061673 | N19: =210/60 -> 3.5 | P19: 4.383333333 | Q19: 25.75979237 | R19: 45.25979237
D20: =285/60 -> 4.75 | F20: 5.633333333 | G20: 45.10273286 | H20: 45.10273286 | I20: =255/60 -> 4.25 | K20: 5.133333333 | L20: 45.27781967 | M20: 45.27781967 | N20: =270/60 -> 4.5 | P20: 5.383333333 | Q20: 27.24713284 | R20: 46.74713284
D21: =345/60 -> 5.75 | F21: 6.633333333 | G21: 45.97421261 | H21: 45.97421261 | I21: =315/60 -> 5.25 | K21: 6.133333333 | L21: 46.01752818 | M21: 46.01752818 | N21: =330/60 -> 5.5 | P21: 6.383333333 | Q21: 28.20158645 | R21: 47.70158645
D22: =405/60 -> 6.75 | F22: 7.633333333 | G22: 46.79000255 | H22: 46.79000255 | I22: =375/60 -> 6.25 | K22: 7.133333333 | L22: 47.25689661 | M22: 47.25689661 | N22: =390/60 -> 6.5 | P22: 7.383333333 | Q22: 29.58016575 | R22: 49.08016575
D23: =465/60 -> 7.75 | F23: 8.633333333 | G23: 47.78277563 | H23: 47.78277563 | I23: =435/60 -> 7.25 | K23: 8.133333333 | L23: 47.96793664 | M23: 47.96793664 | N23: =450/60 -> 7.5 | P23: 8.383333333 | Q23: 30.31514331 | R23: 49.81514331
D24: =525/60 -> 8.75 | F24: 9.633333333 | G24: 48.14681459 | H24: 48.14681459 | I24: =495/60 -> 8.25 | K24: 9.133333333 | L24: 48.43860723 | M24: 48.43860723 | N24: =510/60 -> 8.5 | P24: 9.383333333 | Q24: 30.69754504 | R24: 50.19754504

Sheet varying alkene
D1: BL-405, BL-413 + BL-443 | G1: BL-421 | L1: BL-461
D2: [SM]0 (cyclohexene) | E2: 80 mM | G2: [SM]0 (dialin) | H2: 80 mM | L2: [SM]0 (TME) | M2: 80 mM
D3: [PhCO2H]0 | E3: 400 mM | G3: [PhCO2H]0 | H3: 400 mM | L3: [PhCO2H]0 | M3: 400 mM
D4: [NBS]0 | E4: 96 mM | G4: [NBS]0 | H4: 96 mM | L4: [NBS]0 | M4: 96 mM
D5: [(RO)2PO2H]0 | E5: 8 mM | G5: [(RO)2PO2H]0 | H5: 8 mM | L5: [(RO)2PO2H]0 | M5: 8 mM
D6: [(4-Tol)2CO]0 | E6: 40 mM | G6: [(4-Tol)2CO]0 | H6: 40 mM | L6: [(4-Tol)2CO]0 | M6: 40 mM | N6: ← internal standard
D7: [P]0 (50:50 er) | E7: 0 mM | G7: [P]0 (50:50 er) | H7: 0 mM | L7: [P]0 (50:50 er) | M7: 0 mM
D8: [succinimide]0 | E8: 0 mM | G8: [succinimide]0 | H8: 0 mM | L8: [succinimide]0 | M8: 0 mM
D10: Experiment 1 | G10: Experiment 7 | L10: Experiment 22
D11: t (hours) | E11: [SM] (mM) | F11: [P] (mM) | G11: t (hours) | H11: shifted t, SM | I11: shifted t, P | J11: [P] (mM) | L11: t (hours) | M11: shifted t, SM | N11: shifted t, P | O11: [P] (mM)
D12: =0/60 -> 0 | F12: 0 | G12: =0/60 -> 0 | J12: 0 | L12: =0/60 -> 0 | O12: 0
D13: =2.5/60 -> 0.04166666667 | F13: 3.98704226 | G13: =15/60 -> 0.25 | J13: 6.652092884 | L13: =7.5/60 -> 0.125 | O13: 28
D14: =4/60 -> 0.06666666667 | F14: 4.765385596 | G14: =30/60 -> 0.5 | J14: 7.645370661 | L14: =15/60 -> 0.25 | O14: 32
D15: =7.5/60 -> 0.125 | F15: 7.228659223 | G15: =60/60 -> 1 | J15: 8.075469029 | L15: =30/60 -> 0.5 | O15: 33
D16: =15/60 -> 0.25 | F16: 11.28373822 | G16: =90/60 -> 1.5 | J16: 8.387353867 | L16: =60/60 -> 1 | O16: 33
D17: =30/60 -> 0.5 | F17: 15.93759965 | G17: =120/60 -> 2 | J17: 8.945475057 | L17: =90/60 -> 1.5 | O17: 33
D18: =45/60 -> 0.75 | F18: 19.33692359 | G18: =180/60 -> 3 | J18: 9.160965008 | L18: =120/60 -> 2 | O18: 33
D19: =60/60 -> 1 | F19: 21.30960274 | G19: =240/60 -> 4 | J19: 9.347403466 | L19: =180/60 -> 3 | O19: 33
D20: =90/60 -> 1.5 | F20: 23.80324453 | G20: =300/60 -> 5 | J20: 9.754950514
D21: =120/60 -> 2 | F21: 25.96426247 | G21: =360/60 -> 6 | J21: 10.19453324
D22: =180/60 -> 3 | F22: 28.1740444 | G22: =420/60 -> 7 | J22: 10.26995624
D23: =240/60 -> 4 | F23: 29.69908159 | G23: =480/60 -> 8 | J23: 10.43924034
D24: =300/60 -> 5 | F24: 30.79042491
D25: =360/60 -> 6 | F25: 31.21317415
D26: =420/60 -> 7 | F26: 31.61273007
D27: =480/60 -> 8 | F27: 31.67112577

Sheet periodic cat addition
D1: BL-405, BL-413 + BL-443 | G1: BL-427
D2: [SM]0 | E2: 80 mM | G2: [SM]0 | H2: 80 mM
D3: [PhCO2H]0 | E3: 400 mM | G3: [PhCO2H]0 | H3: 400 mM
D4: [NBS]0 | E4: 96 mM | G4: [NBS]0 | H4: 96 mM
D5: [(RO)2PO2H]0 | E5: 8 mM | G5: [(RO)2PO2H]0 | H5: 8 mM | I5: "+ 8 mM every 2 h"
D6: [(4-Tol)2CO]0 | E6: 40 mM | G6: [(4-Tol)2CO]0 | H6: 40 mM
D7: [P]0 | E7: 0 mM | G7: [P]0 | H7: 0 mM
D8: [succinimide]0 | E8: 0 mM | G8: [succinimide]0 | H8: 0 mM
D10: Experiment 1 | G10: Experiment 9
D11: t (hours) | E11: [SM] (mM) | F11: [P] (mM) | G11: t (hours) | H11: shifted t, SM | I11: shifted t, P | J11: [P] (mM) | K11: [SM] (mM)
G12: =0/60 -> 0 | J12: 0 | K12: =80-J12 -> 80
G13: =15/60 -> 0.25 | J13: 10.45926831 | K13: =80-J13 -> 69.54073169
G14: =30/60 -> 0.5 | J14: 15.46954686 | K14: 64.53045314
G15: =60/60 -> 1 | J15: 20.60491658 | K15: 59.39508342
G16: =90/60 -> 1.5 | J16: 23.92186726 | K16: 56.07813274
G17: =120/60 -> 2 | J17: 26.33181129 | K17: 53.66818871
G18: =135/60 -> 2.25 | J18: 31.1174812 | K18: 48.8825188
G19: =150/60 -> 2.5 | J19: 34.55435409 | K19: 45.44564591
G20: =180/60 -> 3 | J20: 39.44347586 | K20: 40.55652414
G21: =210/60 -> 3.5 | J21: 42.58437084 | K21: 37.41562916
D22: =180/60 -> 3 | F22: 28.1740444 | G22: =240/60 -> 4 | J22: 44.40984798 | K22: 35.59015202
D23: =240/60 -> 4 | F23: 29.69908159 | G23: =255/60 -> 4.25 | J23: 46.56195972 | K23: 33.43804028
D24: =300/60 -> 5 | F24: 30.79042491 | G24: =270/60 -> 4.5 | J24: 48.97278642 | K24: 31.02721358
D25: =360/60 -> 6 | F25: 31.21317415 | G25: =300/60 -> 5 | J25: 51.6245108 | K25: 28.3754892
D26: =420/60 -> 7 | F26: 31.61273007 | G26: =330/60 -> 5.5 | J26: 53.36822056 | K26: =80-J26 -> 26.63177944
D27: =480/60 -> 8 | F27: 31.67112577 | G27: =360/60 -> 6 | J27: 55.90073799 | K27: 24.09926201
D28: =120/60 -> 2 | F28: 26.33181129 | G28: =375/60 -> 6.25 | J28: 56.86415637 | K28: 23.13584363
D29: =120/60 -> 2 | F29: 0 | G29: =390/60 -> 6.5 | J29: 57.95431447 | K29: 22.04568553
D30: =240/60 -> 4 | F30: 44.40984798 | G30: =420/60 -> 7 | J30: 58.96580396 | K30: 21.03419604
D31: =240/60 -> 4 | F31: 0 | G31: =450/60 -> 7.5 | J31: 60.14710337 | K31: 19.85289663
D32: =360/60 -> 6 | F32: 55.90073799 | G32: =480/60 -> 8 | J32: 61.10466904 | K32: 18.89533096
D33: =360/60 -> 6 | F33: 0

Sheet IS order
E1: BL-405, BL-413 + BL-443 | J1: BL-429
E2: [SM]0 | F2: 80 mM | J2: [SM]0 | K2: 80 mM
E3: [PhCO2H]0 | F3: 400 mM | J3: [PhCO2H]0 | K3: 400 mM
E4: [NBS]0 | F4: 96 mM | J4: [NBS]0 | K4: 96 mM
E5: [(RO)2PO2H]0 | F5: 8 mM | J5: [(RO)2PO2H]0 | K5: 8 mM
E6: [(4-Tol)2CO]0 | F6: 40 mM | G6: ← internal standard | J6: [(4-Tol)2CO]0 | K6: 20 mM | L6: ← internal standard
E7: [P]0 | F7: 0 mM | J7: [P]0 | K7: 0 mM
E8: [succinimide]0 | F8: 0 mM | J8: [succinimide]0 | K8: 0 mM
E10: Experiment 1 | J10: Experiment 8
E11: t (hours) | F11: shifted t, SM | G11: shifted t, P | H11: [SM] (mM) | I11: [P] (mM) | J11: t (hours) | K11: shifted t, SM | L11: shifted t, P | M11: [SM] (mM) | N11: [P] (mM)
A12: order in (4-Tol)2CO | B12: 0 | E12: =0/60 -> 0 | G12: 0 | I12: 0 | J12: =0/60 -> 0 | L12: 0 | N12: 0
E13: =2.5/60 -> 0.04166666667 | G13: =G12+((I13+I12)/2)^$B$12*(E13-E12) -> 0.04166666667 | I13: 3.98704226 | J13: =15/60 -> 0.25 | L13: =L12+((N13+N12)/2)^$B$12*(J13-J12) -> 
E14: =4/60 -> 0.06666666667 | G14: =G13+((I14+I13)/2)^$B$12*(E14-E13) -> 0.06666666667 | I14: 4.765385596 | J14: =22.5/60 -> 0.375 | L14: =L13+((N14+N13)/2)^$B$12*(J14-J13) ->  | N14: 13.76483625
E15: =7.5/60 -> 0.125 | G15: 0.125 | I15: 7.228659223 | J15: =45/60 -> 0.75 | L15: =L14+((N15+N14)/2)^$B$12*(J15-J14) ->  | N15: 19.17500204
E16: =15/60 -> 0.25 | G16: 0.25 | I16: 11.28373822 | J16: =75/60 -> 1.25 | N16: 23.37936343
E17: =30/60 -> 0.5 | G17: 0.5 | I17: 15.93759965 | J17: =105/60 -> 1.75 | N17: 26.1835746
E18: =45/60 -> 0.75 | G18: 0.75 | I18: 19.33692359 | J18: =150/60 -> 2.5 | N18: 28.49495127
E19: =60/60 -> 1 | G19: 1 | I19: 21.30960274 | J19: =210/60 -> 3.5 | N19: 30.06915116
E20: =90/60 -> 1.5 | G20: 1.5 | I20: 24.5701995 | J20: =270/60 -> 4.5 | N20: 31.60007998
E21: =120/60 -> 2 | G21: 2 | I21: 26.89957596 | J21: =330/60 -> 5.5 | N21: 33.00118183
E22: =180/60 -> 3 | G22: 3 | I22: 28.9341692 | J22: =390/60 -> 6.5 | N22: 32.86889407
E23: =240/60 -> 4 | G23: 4 | I23: 30.6706864 | J23: =450/60 -> 7.5 | N23: 34.12118885
E24: =300/60 -> 5 | G24: 5 | I24: 31.51442793 | J24: =510/60 -> 8.5 | N24: 34.03732451
E25: =360/60 -> 6 | G25: 6 | I25: 32.69596786
E26: =420/60 -> 7 | G26: 7 | I26: 33.49985439
E27: =480/60 -> 8 | G27: 8 | I27: 33.82890647

Sheet cat order
D1: BL-405, BL-413 + BL-443 | J1: BL-430 | P1: BL-432
D2: [SM]0 | E2: 80 mM | J2: [SM]0 | K2: 80 mM | P2: [SM]0 | Q2: 80 mM
D3: [PhCO2H]0 | E3: 400 mM | J3: [PhCO2H]0 | K3: 400 mM | P3: [PhCO2H]0 | Q3: 400 mM
D4: [NBS]0 | E4: 96 mM | J4: [NBS]0 | K4: 96 mM | P4: [NBS]0 | Q4: 96 mM
D5: [(RO)2PO2H]0 | E5: 8 mM | J5: [(RO)2PO2H]0 | K5: 16 mM | P5: [(RO)2PO2H]0 | Q5: 5 mM
D6: [(4-Tol)2CO]0 | E6: 40 mM | F6: ← internal standard | J6: [(4-Tol)2CO]0 | K6: 40 mM | L6: ← internal standard | P6: [(4-Tol)2CO]0 | Q6: 40 mM | R6: ← internal standard
D7: [P]0 | E7: 0 mM | J7: [P]0 | K7: 0 mM | P7: [P]0 | Q7: 0 mM
D8: [succinimide]0 | E8: 0 mM | J8: [succinimide]0 | K8: 0 mM | P8: [succinimide]0 | Q8: 0 mM
D10: Experiment 1 | J10: Experiment 10 | P10: Experiment 12
D11: t (hours) | E11: [side] (mM) | F11: tcat (P) | G11: dr side | H11: [P] (mM) | I11: [cat] (mM) | J11: t (hours) | K11: [side] (mM) | L11: tcat (P) | M11: area ratio side | N11: [P] (mM) | O11: [cat] (mM) | P11: t (hours) | Q11: [side] (mM) | R11: tcat (P) | S11: area ratio side | T11: [P] (mM) | U11: [cat] (mM)
D12: =0/60 -> 0 | E12: =(0/$B$14)*0.04*1000 -> 0 | F12: 0 | H12: 0 | I12: =(8*0.89)-E12 -> 7.12 | J12: =0/60 -> 0 | K12: =(M12/$B$14)*0.04*1000 -> 0 | L12: 0 | M12: 0 | N12: 0 | O12: =(16*0.89)-K12 -> 14.24 | P12: 0 | Q12: =(S12/$B$14)*0.04*1000 -> 0 | R12: 0 | S12: 0 | T12: 0 | U12: =(5*0.89)-Q12 -> 4.45
A13: order in cat (P) | B13: 0 | D13: =2.5/60 -> 0.04166666667 | E13: =(1.14077184119067/$B$14)*0.04*1000 -> 1.780474436 | F13: =F12+(($I12+$I13)/2)^$B$13*($D13-$D12) -> 0.04166666667 | G13: 54 | H13: 3.98704226 | I13: =(8*0.89)-E13 -> 5.339525564 | J13: =7.5/60 -> 0.125 | K13: =(M13/$B$14)*0.04*1000 -> 4.171793565 | L13: =L12+(($O12+$O13)/2)^$B$13*($J13-$J12) -> 0.125 | M13: 2.67291938 | N13: 11.0880112 | O13: =(16*0.89)-K13 -> 10.06820643 | P13: 0.25 | Q13: =(S13/$B$14)*0.04*1000 -> 1.812212147 | R13: =R12+(($U12+$U13)/2)^$B$13*($P13-$P12) -> 0.25 | S13: 1.161106582 | T13: 8.060772412 | U13: =(5*0.89)-Q13 -> 2.637787853
A14: calibration gradient | B14: 25.62849132 | D14: =4/60 -> 0.06666666667 | E14: =(1.14410740998002/$B$14)*0.04*1000 -> 1.785680469 | F14: =F13+(($I13+$I14)/2)^$B$13*($D14-$D13) -> 0.06666666667 | G14: 54 | H14: 4.765385596 | I14: 5.334319531 | J14: =15/60 -> 0.25 | K14: 5.768220701 | L14: =L13+(($O13+$O14)/2)^$B$13*($J14-$J13) -> 0.25 | M14: 3.695769855 | N14: 16.2033691 | O14: 8.471779299 | P14: 0.5 | Q14: 2.449075351 | R14: =R13+(($U13+$U14)/2)^$B$13*($P14-$P13) -> 0.5 | S14: 1.56915266 | T14: 11.64988344 | U14: 2.000924649
D15: =7.5/60 -> 0.125 | E15: =(1.3669648304578/$B$14)*0.04*1000 -> 2.133508076 | F15: 0.125 | G15: 55 | H15: 7.228659223 | I15: 4.986491924 | J15: =30/60 -> 0.5 | K15: 7.316905967 | L15: =L14+(($O14+$O15)/2)^$B$13*($J15-$J14) -> 0.5 | M15: 4.688031527 | N15: 22.09007196 | O15: 6.923094033 | P15: 1 | Q15: 3.046231682 | R15: 1 | S15: 1.951758056 | T15: 15.7310219 | U15: 1.403768318
D16: =15/60 -> 0.25 | E16: =(1.85494572334417/$B$14)*0.04*1000 -> 2.895130579 | F16: 0.25 | G16: 56 | H16: 11.28373822 | I16: 4.224869421 | J16: =60/60 -> 1 | K16: 8.640068996 | L16: =L15+(($O15+$O16)/2)^$B$13*($J16-$J15) -> 1 | M16: 5.535798333 | N16: 28.51353844 | O16: 5.599931004 | P16: 1.5 | Q16: 3.388205639 | R16: 1.5 | S16: 2.170864971 | T16: 18.21889824 | U16: 1.061794361
D17: =30/60 -> 0.5 | E17: =(2.40833533120122/$B$14)*0.04*1000 -> 3.758840582 | F17: 0.5 | G17: 56 | H17: 15.93759965 | I17: 3.361159418 | J17: =90/60 -> 1.5 | K17: 9.374485836 | L17: 1.5 | M17: 6.006348223 | N17: 32.03959532 | O17: 4.865514164 | P17: 2 | Q17: 3.590389603 | R17: 2 | S17: 2.30040672 | T17: 19.77472035 | U17: 0.859610397
D18: =45/60 -> 0.75 | E18: =(2.75926294163546/$B$14)*0.04*1000 -> 4.306555398 | F18: 0.75 | G18: 56 | H18: 19.33692359 | I18: 2.813444602 | J18: =120/60 -> 2 | K18: 9.825126577 | L18: =L17+(($O17+$O18)/2)^$B$13*($J18-$J17) -> 2 | M18: 6.295079281 | N18: 34.61127906 | O18: 4.414873423 | P18: 3 | Q18: 3.801088852 | R18: 3 | S18: 2.435404317 | T18: 21.65500612 | U18: 0.6489111476
D19: =60/60 -> 1 | E19: =(2.99506365840918/$B$14)*0.04*1000 -> 4.674584423 | F19: 1 | G19: 56 | H19: 21.30960274 | I19: 2.445415577 | J19: =180/60 -> 3 | K19: 10.31759151 | L19: 3 | M19: 6.610607615 | N19: 37.64370009 | O19: 3.922408485 | P19: 4 | Q19: 3.909931732 | R19: 4 | S19: 2.505141287 | T19: 22.20086387 | U19: 0.5400682676
D20: =90/60 -> 1.5 | E20: =(3.24327090939281/$B$14)*0.04*1000 -> 5.061977107 | F20: 1.5 | G20: 56 | H20: 23.80324453 | I20: 2.058022893 | J20: =240/60 -> 4 | K20: 10.79033309 | L20: 4 | M20: 6.913498947 | N20: 39.86532881 | O20: 3.449666914
D21: =120/60 -> 2 | E21: =(3.44415809812048/$B$14)*0.04*1000 -> 5.375514391 | F21: 2 | G21: 56 | H21: 25.96426247 | I21: 1.744485609 | J21: =300/60 -> 5 | K21: 10.97247177 | L21: 5 | M21: 7.030197439 | N21: 41.2198775 | O21: 3.26752823
D22: =180/60 -> 3 | E22: =(3.60697414160791/$B$14)*0.04*1000 -> 5.629631641 | F22: 3 | G22: 56.56923917 | H22: 28.1740444 | I22: 1.490368359 | J22: =360/60 -> 6 | K22: 11.13365233 | L22: 6 | M22: 7.133467803 | N22: 42.41372008 | O22: 3.106347671
D23: =240/60 -> 4 | E23: =(3.74514039920507/$B$14)*0.04*1000 -> 5.845276418 | F23: 4 | G23: 56 | H23: 29.69908159 | I23: 1.274723582 | J23: =420/60 -> 7 | K23: 11.25384893 | L23: 7 | M23: 7.210479239 | N23: 43.45631086 | O23: 2.986151074
D24: =300/60 -> 5 | E24: =(3.83485831856871/$B$14)*0.04*1000 -> 5.985304824 | F24: 5 | G24: 56 | H24: 30.79042491 | I24: 1.134695176 | J24: =480/60 -> 8 | K24: 11.40427126 | L24: 8 | M24: 7.306856675 | N24: 43.96511178 | O24: 2.835728742
D25: =360/60 -> 6 | E25: =(3.88189432507223/$B$14)*0.04*1000 -> 6.05871688 | F25: 6 | G25: 56 | H25: 31.21317415 | I25: 1.06128312
A26: 3.886708256 | D26: =420/60 -> 7 | E26: =(3.88670825551769/$B$14)*0.04*1000 -> 6.066230285 | F26: 7 | G26: 56 | H26: 31.61273007 | I26: 1.053769715
D27: =480/60 -> 8 | E27: =(3.89067469268422/$B$14)*0.04*1000 -> 6.072420953 | F27: 8 | G27: 56 | H27: 31.67112577 | I27: 1.047579047

Sheet cat order (old)
D1: BL-405, BL-413 + BL-443 | J1: BL-430 | P1: BL-432
D2: [SM]0 | E2: 80 mM | J2: [SM]0 | K2: 80 mM | P2: [SM]0 | Q2: 80 mM
D3: [PhCO2H]0 | E3: 400 mM | J3: [PhCO2H]0 | K3: 400 mM | P3: [PhCO2H]0 | Q3: 400 mM
D4: [NBS]0 | E4: 96 mM | J4: [NBS]0 | K4: 96 mM | P4: [NBS]0 | Q4: 96 mM
D5: [(RO)2PO2H]0 | E5: 8 mM | J5: [(RO)2PO2H]0 | K5: 16 mM | P5: [(RO)2PO2H]0 | Q5: 5 mM
D6: [(4-Tol)2CO]0 | E6: 40 mM | F6: ← internal standard | J6: [(4-Tol)2CO]0 | K6: 40 mM | L6: ← internal standard | P6: [(4-Tol)2CO]0 | Q6: 40 mM | R6: ← internal standard
D7: [P]0 | E7: 0 mM | J7: [P]0 | K7: 0 mM | P7: [P]0 | Q7: 0 mM
D8: [succinimide]0 | E8: 0 mM | J8: [succinimide]0 | K8: 0 mM | P8: [succinimide]0 | Q8: 0 mM
D10: Experiment 1 | J10: Experiment 10 | P10: Experiment 12
D11: t (hours) | E11: tcat 2 | F11: tcat (P) | G11: area ratio side | H11: [P] (mM) | I11: [cat] (mM) | J11: t (hours) | L11: tcat (P) | M11: area ratio side | N11: [P] (mM) | O11: [cat] (mM) | P11: t (hours) | R11: tcat (P) | S11: area ratio side | T11: [P] (mM) | U11: [cat] (mM)
D12: =0/60 -> 0 | E12: =D12*I12 -> 0 | F12: 0 | G12: 0 | H12: 0 | I12: =8-((G12/$B$14)*0.04*1000) -> 8 | J12: =0/60 -> 0 | L12: 0 | M12: 0 | N12: 0 | O12: =16-((M12/$B$14)*0.04*1000) -> 16 | P12: 0 | R12: 0 | S12: 0 | T12: 0 | U12: 5
A13: order in cat (P) | B13: 1 | D13: =2.5/60 -> 0.04166666667 | E13: =D13*I13 -> 0.3333333333 | F13: =F12+(($I12+$I13)/2)^$B$13*($D13-$D12) -> 0.3333333333 | G13: 1.140771841 | H13: 3.98704226 | I13: 8 | J13: =7.5/60 -> 0.125 | L13: =L12+(($O12+$O13)/2)^$B$13*($J13-$J12) -> 2 | M13: 2.67291938 | N13: 11.0880112 | O13: 16 | P13: 0.25 | R13: =R12+(($U12+$U13)/2)^$B$13*($P13-$P12) -> 1.25 | S13: 1.161106582 | T13: 8.060772412 | U13: 5
A14: calibration gradient | B14: 25.62849132 | D14: =4/60 -> 0.06666666667 | E14: 0.5333333333 | F14: 0.5333333333 | G14: 1.14410741 | H14: 4.765385596 | I14: 8 | J14: =15/60 -> 0.25 | L14: =L13+(($O13+$O14)/2)^$B$13*($J14-$J13) -> 4 | M14: 3.695769855 | N14: 16.2033691 | O14: 16 | P14: 0.5 | R14: =R13+(($U13+$U14)/2)^$B$13*($P14-$P13) -> 2.5 | S14: 1.56915266 | T14: 11.64988344 | U14: 5
D15: =7.5/60 -> 0.125 | E15: 1 | F15: 1 | G15: 1.36696483 | H15: 7.228659223 | I15: 8 | J15: =30/60 -> 0.5 | L15: =L14+(($O14+$O15)/2)^$B$13*($J15-$J14) -> 8 | M15: 4.688031527 | N15: 22.09007196 | O15: 16 | P15: 1 | R15: 5 | S15: 1.951758056 | T15: 15.7310219 | U15: 5
D16: =15/60 -> 0.25 | E16: 2 | F16: 2 | G16: 1.854945723 | H16: 11.28373822 | I16: 8 | J16: =60/60 -> 1 | L16: =L15+(($O15+$O16)/2)^$B$13*($J16-$J15) -> 16 | M16: 5.535798333 | N16: 28.51353844 | O16: 16 | P16: 1.5 | R16: 7.5 | S16: 2.170864971 | T16: 18.21889824 | U16: 5
D17: =30/60 -> 0.5 | E17: 4 | F17: 4 | G17: 2.408335331 | H17: 15.93759965 | I17: 8 | J17: =90/60 -> 1.5 | L17: 24 | M17: 6.006348223 | N17: 32.03959532 | O17: 16 | P17: 2 | R17: 10 | S17: 2.30040672 | T17: 19.77472035 | U17: 5
D18: =45/60 -> 0.75 | E18: 6 | F18: 6 | G18: 2.759262942 | H18: 19.33692359 | I18: 8 | J18: =120/60 -> 2 | L18: 32 | M18: 6.295079281 | N18: 34.61127906 | O18: 16 | P18: 3 | R18: 15 | S18: 2.435404317 | T18: 21.65500612 | U18: 5
D19: =60/60 -> 1 | E19: 8 | F19: 8 | G19: 2.995063658 | H19: 21.30960274 | I19: 8 | J19: =180/60 -> 3 | L19: 48 | M19: 6.610607615 | N19: 37.64370009 | O19: 16 | P19: 4 | R19: 20 | S19: 2.505141287 | T19: 22.20086387 | U19: 5
D20: =90/60 -> 1.5 | E20: 12 | F20: 12 | G20: 3.243270909 | H20: 23.80324453 | I20: 8 | J20: =240/60 -> 4 | L20: 64 | M20: 6.913498947 | N20: 39.86532881 | O20: 16
D21: =120/60 -> 2 | E21: 16 | F21: 16 | G21: 3.444158098 | H21: 25.96426247 | I21: 8 | J21: =300/60 -> 5 | L21: 80 | M21: 7.030197439 | N21: 41.2198775 | O21: 16
D22: =180/60 -> 3 | E22: 24 | F22: 24 | G22: 3.606974142 | H22: 28.1740444 | I22: 8 | J22: =360/60 -> 6 | L22: 96 | M22: 7.133467803 | N22: 42.41372008 | O22: 16
D23: =240/60 -> 4 | E23: 32 | F23: 32 | G23: 3.745140399 | H23: 29.69908159 | I23: 8 | J23: =420/60 -> 7 | L23: 112 | M23: 7.210479239 | N23: 43.45631086 | O23: 16
D24: =300/60 -> 5 | E24: 40 | F24: 40 | G24: 3.834858319 | H24: 30.79042491 | I24: 8 | J24: =480/60 -> 8 | L24: 128 | M24: 7.306856675 | N24: 43.96511178 | O24: 16
D25: =360/60 -> 6 | E25: 48 | F25: 48 | G25: 3.843865423 | H25: 31.21317415 | I25: 8
D26: =420/60 -> 7 | E26: 56 | F26: 56 | G26: 3.862116652 | H26: 31.61273007 | I26: 8
D27: =480/60 -> 8 | E27: 64 | F27: 64 | G27: 3.890674693 | H27: 31.67112577 | I27: 8

Sheet NBS order
E1: BL-405, BL-413 + BL-443 | J1: BL-431
E2: [SM]0 | F2: 80 mM | J2: [SM]0 | K2: 80 mM
E3: [PhCO2H]0 | F3: 400 mM | J3: [PhCO2H]0 | K3: 400 mM
E4: [NBS]0 | F4: 96 mM | J4: [NBS]0 | K4: 64 mM
E5: [(RO)2PO2H]0 | F5: 8 mM | J5: [(RO)2PO2H]0 | K5: 8 mM
E6: [(4-Tol)2CO]0 | F6: 40 mM | G6: ← internal standard | J6: [(4-Tol)2CO]0 | K6: 40 mM | L6: ← internal standard
E7: [P]0 | F7: 0 mM | J7: [P]0 | K7: 0 mM
E8: [succinimide]0 | F8: 0 mM | J8: [succinimide]0 | K8: 0 mM
E10: Experiment 1 | J10: Experiment 11
E11: t (hours) | F11: shifted t | G11: [NBS] (mM) | H11: [side] (mM) | I11: [P] (mM) | J11: t (hours) | K11: shifted t | L11: [NBS] (mM) | N11: [P] (mM)
A12: order in NBS | B12: 0 | E12: =0/60 -> 0 | F12: 0 | G12: =96-I12-H12 -> 96 | H12: 0 | I12: 0 | J12: =0/60 -> 0 | K12: 0 | L12: =64-N12 -> 64 | N12: 0
E13: =2.5/60 -> 0.04166666667 | F13: =F12+((G13+G12)/2)^$B$12*(E13-E12) -> 0.04166666667 | G13: =96-I13 -> 92.01295774 | H13: 1.780474436 | I13: 3.98704226 | J13: =15/60 -> 0.25 | K13: =K12+((L13+L12)/2)^$B$12*(J13-J12) -> 0.25 | L13: =64-N13 -> 55.51662256 | N13: 8.483377437
E14: =4/60 -> 0.06666666667 | F14: =F13+((G14+G13)/2)^$B$12*(E14-E13) -> 0.06666666667 | G14: 91.2346144 | H14: 1.785680469 | I14: 4.765385596 | J14: =30/60 -> 0.5 | K14: =K13+((L14+L13)/2)^$B$12*(J14-J13) -> 0.5 | L14: =64-N14 -> 51.15112124 | N14: 12.84887876
E15: =7.5/60 -> 0.125 | F15: 0.125 | G15: 88.77134078 | H15: 2.133508076 | I15: 7.228659223 | J15: =60/60 -> 1 | K15: 1 | L15: 46.17835615 | N15: 17.82164385
E16: =15/60 -> 0.25 | F16: 0.25 | G16: 84.71626178 | H16: 2.895130579 | I16: 11.28373822 | J16: =90/60 -> 1.5 | K16: 1.5 | L16: 43.4448542 | N16: 20.5551458
E17: =30/60 -> 0.5 | F17: 0.5 | G17: 80.06240035 | H17: 3.758840582 | I17: 15.93759965 | J17: =120/60 -> 2 | K17: 2 | L17: 41.07715529 | N17: 22.92284471
E18: =45/60 -> 0.75 | F18: 0.75 | G18: 76.66307641 | H18: 4.306555398 | I18: 19.33692359 | J18: =180/60 -> 3 | K18: 3 | L18: 38.76354243 | N18: 25.23645757
E19: =60/60 -> 1 | F19: 1 | G19: 74.69039726 | H19: 4.674584423 | I19: 21.30960274 | J19: =240/60 -> 4 | K19: 4 | L19: 36.60885194 | N19: 27.39114806
E20: =90/60 -> 1.5 | F20: 1.5 | G20: 71.4298005 | H20: 5.061977107 | I20: 24.5701995 | J20: =300/60 -> 5 | K20: 5 | L20: 35.21268597 | N20: 28.78731403
E21: =120/60 -> 2 | F21: 2 | G21: 69.10042404 | H21: 5.375514391 | I21: 26.89957596 | J21: =360/60 -> 6 | K21: 6 | L21: 33.95266891 | N21: 30.04733109
E22: =180/60 -> 3 | F22: 3 | G22: 67.0658308 | H22: 5.629631641 | I22: 28.9341692 | J22: =420/60 -> 7 | K22: 7 | L22: 32.96003037 | N22: 31.03996963
E23: =240/60 -> 4 | F23: 4 | G23: 65.3293136 | H23: 5.845276418 | I23: 30.6706864 | J23: =480/60 -> 8 | K23: =K17+((L23+L17)/2)^$B$12*(J23-J17) -> 8 | L23: =64-N23 -> 32.50192312 | N23: 31.49807688
E24: =300/60 -> 5 | F24: 5 | G24: 64.48557207 | H24: 5.985304824 | I24: 31.51442793
E25: =360/60 -> 6 | F25: 6 | G25: 63.30403214 | H25: 6.05871688 | I25: 32.69596786
E26: =420/60 -> 7 | F26: 7 | G26: 62.50014561 | H26: 6.066230285 | I26: 33.49985439
E27: =480/60 -> 8 | F27: 8 | G27: 62.17109353 | H27: 6.072420953 | I27: 33.82890647

Sheet alkene order
E1: BL-405, BL-413 + BL-443 | J1: BL-433
E2: [SM]0 | F2: 80 mM | J2: [SM]0 | K2: 40 mM
E3: [PhCO2H]0 | F3: 400 mM | J3: [PhCO2H]0 | K3: 400 mM
E4: [NBS]0 | F4: 96 mM | J4: [NBS]0 | K4: 96 mM
E5: [(RO)2PO2H]0 | F5: 8 mM | J5: [(RO)2PO2H]0 | K5: 8 mM
E6: [(4-Tol)2CO]0 | F6: 40 mM | G6: ← internal standard | J6: [(4-Tol)2CO]0 | K6: 40 mM | L6: ← internal standard
E7: [P]0 | F7: 0 mM | J7: [P]0 | K7: 0 mM
E8: [succinimide]0 | F8: 0 mM | J8: [succinimide]0 | K8: 0 mM
E10: Experiment 1 | J10: Experiment 13
E11: t (hours) | F11: shifted t | G11: [SM] (mM) | I11: [P] (mM) | J11: t (hours) | K11: shifted t | L11: [SM] (mM) | N11: [P] (mM)
A12: order in alkene | B12: 1 | E12: =0/60 -> 0 | F12: 0 | G12: =80-I12 -> 80 | I12: 0 | J12: =0/60 -> 0 | K12: 0 | L12: =40-N12 -> 40 | N12: 0
E13: =2.5/60 -> 0.04166666667 | F13: =F12+((G13+G12)/2)^$B$12*(E13-E12) -> 3.250269953 | G13: =80-I13 -> 76.01295774 | I13: 3.98704226 | J13: =7.5/60 -> 0.125 | K13: =K12+((L13+L12)/2)^$B$12*(J13-J12) -> 4.71118943 | L13: =40-N13 -> 35.37903089 | N13: 4.620969113
E14: =4/60 -> 0.06666666667 | F14: =F13+((G14+G13)/2)^$B$12*(E14-E13) -> 5.140864605 | G14: 75.2346144 | I14: 4.765385596 | J14: =15/60 -> 0.25 | K14: =K13+((L14+L13)/2)^$B$12*(J14-J13) -> 8.971925043 | L14: =40-N14 -> 32.79273892 | N14: 7.207261079
E15: =7.5/60 -> 0.125 | F15: 9.457704964 | G15: 72.77134078 | I15: 7.228659223 | J15: =30/60 -> 0.5 | K15: 16.70380873 | L15: 29.06233059 | N15: 10.93766941
E16: =15/60 -> 0.25 | F16: 18.30068012 | G16: 68.71626178 | I16: 11.28373822 | J16: =60/60 -> 1 | K16: 30.04086095 | L16: 24.28587829 | N16: 15.71412171
E17: =30/60 -> 0.5 | F17: 34.89801289 | G17: 64.06240035 | I17: 15.93759965 | J17: =90/60 -> 1.5 | K17: 41.56697051 | L17: 21.81855994 | N17: 18.18144006
E18: =45/60 -> 0.75 | F18: 50.48869749 | G18: 60.66307641 | I18: 19.33692359 | J18: =120/60 -> 2 | K18: 51.98015683 | L18: 19.83418534 | N18: 20.16581466
E19: =60/60 -> 1 | F19: 65.40788169 | G19: 58.69039726 | I19: 21.30960274 | J19: =180/60 -> 3 | K19: 70.55533157 | L19: 17.31616414 | N19: 22.68383586
E20: =90/60 -> 1.5 | F20: 93.93793114 | G20: 55.4298005 | I20: 24.5701995 | J20: =240/60 -> 4 | K20: 87.04001808 | L20: 15.65320888 | N20: 24.34679112
E21: =120/60 -> 2 | F21: 121.0704873 | G21: 53.10042404 | I21: 26.89957596 | J21: =300/60 -> 5 | K21: 101.9915406 | L21: 14.24983605 | N21: 25.75016395
E22: =180/60 -> 3 | F22: 173.1536147 | G22: 51.0658308 | I22: 28.9341692 | J22: =360/60 -> 6 | K22: 115.8590516 | L22: 13.48518599 | N22: 26.51481401
E23: =240/60 -> 4 | F23: 223.3511869 | G23: 49.3293136 | I23: 30.6706864 | J23: =420/60 -> 7 | K23: 128.8993871 | L23: 12.59548512 | N23: 27.40451488
E24: =300/60 -> 5 | F24: 272.2586297 | G24: 48.48557207 | I24: 31.51442793 | J24: =480/60 -> 8 | K24: =K19+((L24+L19)/2)^$B$12*(J24-J19) -> 143.3556328 | L24: =40-N24 -> 11.80395636 | N24: 28.19604364
E25: =360/60 -> 6 | F25: 320.1534318 | G25: 47.30403214 | I25: 32.69596786
E26: =420/60 -> 7 | F26: 367.0555207 | G26: 46.50014561 | I26: 33.49985439
E27: =480/60 -> 8 | F27: 413.3911403 | G27: 46.17109353 | I27: 33.82890647

Sheet BzOH order
E1: BL-405, BL-413 + BL-443 | J1: BL-434 | O1: BL-435
E2: [SM]0 | F2: 80 mM | J2: [SM]0 | K2: 80 mM | O2: [SM]0 | P2: 80 mM
E3: [PhCO2H]0 | F3: 400 mM | J3: [PhCO2H]0 | K3: 160 mM | O3: [PhCO2H]0 | P3: 280 mM
E4: [NBS]0 | F4: 96 mM | J4: [NBS]0 | K4: 96 mM | O4: [NBS]0 | P4: 96 mM
E5: [(RO)2PO2H]0 | F5: 8 mM | J5: [(RO)2PO2H]0 | K5: 8 mM | O5: [(RO)2PO2H]0 | P5: 8 mM
E6: [(4-Tol)2CO]0 | F6: 40 mM | G6: ← internal standard | J6: [(4-Tol)2CO]0 | K6: 40 mM | L6: ← internal standard | O6: [(4-Tol)2CO]0 | P6: 40 mM | Q6: ← internal standard
E7: [P]0 | F7: 0 mM | J7: [P]0 | K7: 0 mM | O7: [P]0 | P7: 0 mM
E8: [succinimide]0 | F8: 0 mM | J8: [succinimide]0 | K8: 0 mM | O8: [succinimide]0 | P8: 0 mM
E10: Experiment 1 | J10: Experiment 14 | O10: Experiment 15
E11: t (hours) | F11: shifted t | G11: [PhCO2H] (mM) | H11: [side] (mM) | I11: [P] (mM) | J11: t (hours) | K11: shifted t | L11: [PhCO2H] (mM) | M11: [side] (mM) | N11: [P] (mM) | O11: t (hours) | P11: shifted t | Q11: [PhCO2H] (mM) | R11: [side] (mM) | S11: [P] (mM)
A12: order in PhCO2H | B12: 0 | E12: =0/60 -> 0 | F12: 0 | G12: =400-I12 -> 400 | H12: =(0/$B$13)*0.04*1000 -> 0 | I12: 0 | J12: =0/60 -> 0 | K12: 0 | L12: =160-N12 -> 160 | M12: =(0/$B$13)*0.04*1000 -> 0 | N12: 0 | O12: =0/60 -> 0 | P12: 0 | Q12: =280-S12 -> 280 | R12: =(0/$B$13)*0.04*1000 -> 0 | S12: 0
A13: calibration gradient | B13: 25.63 | E13: =2.5/60 -> 0.04166666667 | F13: =F12+((G13+G12)/2)^$B$12*(E13-E12) -> 0.04166666667 | G13: =400-I13 -> 396.0129577 | H13: =(1.14077184119067/$B$13)*0.04*1000 -> 1.780369631 | I13: 3.98704226 | J13: =15/60 -> 0.25 | K13: =K12+((L13+L12)/2)^$B$12*(J13-J12) -> 0.25 | L13: =160-N13 -> 151.6037543 | M13: =(2.63140546259214/$B$13)*0.04*1000 -> 4.106758428 | N13: 8.396245666 | O13: =7.5/60 -> 0.125 | P13: =P12+((Q13+Q12)/2)^$B$12*(O13-O12) -> 0.125 | Q13: =280-S13 -> 273.5821169 | R13: =(1.83156747660276/$B$13)*0.04*1000 -> 2.858474407 | S13: 6.417883109
E14: =4/60 -> 0.06666666667 | F14: =F13+((G14+G13)/2)^$B$12*(E14-E13) -> 0.06666666667 | G14: 395.2346144 | H14: =(1.14410740998002/$B$13)*0.04*1000 -> 1.785575357 | I14: 4.765385596 | J14: =30/60 -> 0.5 | K14: 0.5 | L14: 148.2820497 | M14: =(3.0967328302298/$B$13)*0.04*1000 -> 4.832981397 | N14: 11.7179503 | O14: =15/60 -> 0.25 | P14: 0.25 | Q14: 269.9648136 | R14: =(2.16788480916464/$B$13)*0.04*1000 -> 3.383355145 | S14: 10.03518636
E15: =7.5/60 -> 0.125 | F15: 0.125 | G15: 392.7713408 | H15: =(1.3669648304578/$B$13)*0.04*1000 -> 2.13338249 | I15: 7.228659223 | J15: =60/60 -> 1 | K15: 1 | L15: 145.1294671 | M15: =(3.59685890856656/$B$13)*0.04*1000 -> 5.613513708 | N15: 14.87053294 | O15: =30/60 -> 0.5 | P15: 0.5 | Q15: 265.4949211 | R15: =(2.79260759398914/$B$13)*0.04*1000 -> 4.358341934 | S15: 14.50507892
E16: =15/60 -> 0.25 | F16: 0.25 | G16: 388.7162618 | H16: =(1.85494572334417/$B$13)*0.04*1000 -> 2.894960161 | I16: 11.28373822 | J16: =90/60 -> 1.5 | K16: 1.5 | L16: 143.4889568 | M16: =(3.73199185981098/$B$13)*0.04*1000 -> 5.824411798 | N16: 16.51104317 | O16: =60/60 -> 1 | P16: 1 | Q16: 260.8250713 | R16: =(3.38115459555642/$B$13)*0.04*1000 -> 5.276870223 | S16: 19.17492869
E17: =30/60 -> 0.5 | F17: 0.5 | G17: 384.0624004 | H17: =(2.40833533120122/$B$13)*0.04*1000 -> 3.758619323 | I17: 15.93759965 | J17: =120/60 -> 2 | K17: 2 | L17: 142.1589649 | M17: =(3.88769380804615/$B$13)*0.04*1000 -> 6.067411327 | N17: 17.8410351 | O17: =90/60 -> 1.5 | P17: 1.5 | Q17: 258.1398203 | R17: =(3.62888560457541/$B$13)*0.04*1000 -> 5.663496847 | S17: 21.86017974
E18: =45/60 -> 0.75 | F18: 0.75 | G18: 380.6630764 | H18: =(2.75926294163546/$B$13)*0.04*1000 -> 4.306301899 | I18: 19.33692359 | J18: =180/60 -> 3 | K18: 3 | L18: 141.0684759 | M18: =(3.99394927944923/$B$13)*0.04*1000 -> 6.23324117 | N18: 18.93152413 | O18: =120/60 -> 2 | P18: 2 | Q18: 256.7856926 | R18: =(3.81330404147907/$B$13)*0.04*1000 -> 5.951313369 | S18: 23.21430743
E19: =60/60 -> 1 | F19: 1 | G19: 378.6903973 | H19: =(2.99506365840918/$B$13)*0.04*1000 -> 4.67430926 | I19: 21.30960274 | J19: =240/60 -> 4 | K19: 4 | L19: 140.2681377 | M19: =(3.94786382363649/$B$13)*0.04*1000 -> 6.161316931 | N19: 19.73186232 | O19: =180/60 -> 3 | P19: 3 | Q19: 254.8627154 | R19: =(4.00453704754262/$B$13)*0.04*1000 -> 6.249765193 | S19: 25.13728457
E20: =90/60 -> 1.5 | F20: 1.5 | G20: 375.4298005 | H20: =(3.24327090939281/$B$13)*0.04*1000 -> 5.061679141 | I20: 24.5701995 | J20: =300/60 -> 5 | K20: 5 | L20: 139.8866634 | M20: =(4.05935534794799/$B$13)*0.04*1000 -> 6.33531853 | N20: 20.11333659 | O20: =240/60 -> 4 | P20: 4 | Q20: 253.5252209 | R20: =(4.10530447680122/$B$13)*0.04*1000 -> 6.407030007 | S20: 26.47477912
E21: =120/60 -> 2 | F21: 2 | G21: 373.100424 | H21: =(3.44415809812048/$B$13)*0.04*1000 -> 5.375197968 | I21: 26.89957596 | J21: =360/60 -> 6 | K21: 6 | L21: 139.5358567 | M21: =(4.13574610283366/$B$13)*0.04*1000 -> 6.454539372 | N21: 20.46414334 | O21: =300/60 -> 5 | P21: 5 | Q21: 252.8371961 | R21: =(4.14298747922124/$B$13)*0.04*1000 -> 6.465840779 | S21: 27.16280388
E22: =180/60 -> 3 | F22: 3 | G22: 371.0658308 | H22: =(3.60697414160791/$B$13)*0.04*1000 -> 5.62930026 | I22: 28.9341692 | J22: =420/60 -> 7 | K22: 7 | L22: 139.4769136 | M22: =(4.12897618879073/$B$13)*0.04*1000 -> 6.443973763 | N22: 20.52308637 | O22: =360/60 -> 6 | P22: 6 | Q22: 252.4053561 | R22: =(4.1636300143107/$B$13)*0.04*1000 -> 6.498056987 | S22: 27.59464387
E23: =240/60 -> 4 | F23: 4 | G23: 369.3293136 | H23: =(3.74514039920507/$B$13)*0.04*1000 -> 5.844932344 | I23: 30.6706864 | J23: =480/60 -> 8 | K23: 8 | L23: 139.2576061 | M23: =(4.09226584316236/$B$13)*0.04*1000 -> 6.386680988 | N23: 20.7423939 | O23: =420/60 -> 7 | P23: 7 | Q23: 252.051733 | R23: =(4.21294624242011/$B$13)*0.04*1000 -> 6.575023398 | S23: 27.94826702
E24: =300/60 -> 5 | F24: 5 | G24: 368.4855721 | H24: =(3.83485831856871/$B$13)*0.04*1000 -> 5.984952507 | I24: 31.51442793 | O24: =480/60 -> 8 | P24: =P18+((Q24+Q18)/2)^$B$12*(O24-O18) -> 8 | Q24: =280-S24 -> 251.9834186 | R24: =(4.18773741080233/$B$13)*0.04*1000 -> 6.535680704 | S24: 28.01658135
E25: =360/60 -> 6 | F25: 6 | G25: 367.3040321 | H25: =(3.84386542333948/$B$13)*0.04*1000 -> 5.999009635 | I25: 32.69596786
E26: =420/60 -> 7 | F26: 7 | G26: 366.5001456 | H26: =(3.86211665154446/$B$13)*0.04*1000 -> 6.027493799 | I26: 33.49985439
E27: =480/60 -> 8 | F27: 8 | G27: =400-I27 -> 366.1710935 | H27: =(3.89067469268422/$B$13)*0.04*1000 -> 6.072063508 | I27: 33.82890647
E28: BL-464
E29: [SM]0 | F29: 80 mM | J29: [SM]0 | K29: 80 mM | O29: [SM]0
E30: [PhCO2H]0 | F30: 800 mM | G30: (heterogeneous) | J30: [PhCO2H]0 | K30: 0 mM | O30: [PhCO2H]0
E31: [NBS]0 | F31: 96 mM | J31: [NBS]0 | K31: 96 mM | O31: [NBS]0
E32: [(RO)2PO2H]0 | F32: 8 mM | J32: [(RO)2PO2H]0 | K32: 8 mM | O32: [(RO)2PO2H]0
E33: [(4-Tol)2CO]0 | F33: 40 mM | G33: ← internal standard | J33: [(4-Tol)2CO]0 | K33: 40 mM | L33: ← internal standard | O33: [(4-Tol)2CO]0 | Q33: ← internal standard
E34: [P]0 | F34: 0 mM | J34: [P]0 | K34: 0 mM | O34: [P]0
E35: [succinimide]0 | F35: 0 mM | J35: [succinimide]0 | K35: 0 mM | O35: [succinimide]0
E37: Experiment 23 | J37: Experiment 1 no PhCO2H | O37: Experiment X
E38: t (hours) | F38: shifted t | G38: [PhCO2H] (mM) | H38: [side] (mM) | I38: [P] (mM) | J38: t (hours) | K38: shifted t | L38: [PhCO2H] (mM) | M38: area ratio side | N38: [P] (mM) | O38: t (hours) | P38: shifted t | Q38: [PhCO2H] (mM) | R38: area ratio side | S38: [P] (mM)
E39: =0/60 -> 0 | F39: 0 | G39: 650 | H39: =(0/$B$13)*0.04*1000 -> 0 | I39: 0 | J39: 0 | L39: 0 | M39: 0 | N39: =(M39/$B$13)*0.04*1000 -> 0
E40: =2.5/60 -> 0.04166666667 | F40: =F39+((G40+G39)/2)^$B$12*(E40-E39) -> 0.04166666667 | G40: 650 | H40: =(0.71158598109538/$B$13)*0.04*1000 -> 1.110551668 | I40: 4.413705978 | J40: 0.125 | L40: 0 | M40: 3.614853767 | N40: =(M40/$B$13)*0.04*1000 -> 5.641597763
E41: =4/60 -> 0.06666666667 | F41: =F40+((G41+G40)/2)^$B$12*(E41-E40) -> 0.06666666667 | G41: 650 | H41: =(0.789493181247257/$B$13)*0.04*1000 -> 1.232139183 | I41: 5.709404083 | J41: 0.25 | L41: 0 | M41: 3.800531707 | N41: 5.931379956
E42: =7.5/60 -> 0.125 | F42: 0.125 | G42: 650 | H42: =(1.2594040320031/$B$13)*0.04*1000 -> 1.965515462 | I42: 8.493326186 | J42: 0.5 | L42: 0 | M42: 3.909115215 | N42: 6.100843097
E43: =15/60 -> 0.25 | F43: 0.25 | G43: 650 | H43: =(1.6758860033141/$B$13)*0.04*1000 -> 2.615506833 | I43: 12.70503882 | J43: 1 | L43: 0 | M43: 3.96808965 | N43: =ROUND((M43/$B$13)*0.04*1000,1) -> 6.2
E44: =30/60 -> 0.5 | F44: 0.5 | G44: 650 | H44: =(2.27177028075756/$B$13)*0.04*1000 -> 3.545486197 | I44: 18.43062878 | J44: 1.5 | L44: 0 | M44: 3.977519819 | N44: =ROUND((M44/$B$13)*0.04*1000,1) -> 6.2
E45: =45/60 -> 0.75 | F45: 0.75 | G45: 650 | H45: =(2.63050316158918/$B$13)*0.04*1000 -> 4.105350233 | I45: 21.83182744 | J45: 2 | L45: 0 | M45: 3.983505392 | N45: =ROUND((M45/$B$13)*0.04*1000,1) -> 6.2
E46: =60/60 -> 1 | F46: 1 | G46: 650 | H46: =(2.84364859356805/$B$13)*0.04*1000 -> 4.438000146 | I46: 24.43656232 | J46: 3 | L46: 0 | M46: 4.000040764 | N46: 6.2
E47: =90/60 -> 1.5 | F47: 1.5 | G47: 650 | H47: =(3.13764205051772/$B$13)*0.04*1000 -> 4.896827235 | I47: 27.59062521 | J47: 4 | L47: 0 | M47: 3.954441695 | N47: 6.2
E48: =120/60 -> 2 | F48: 2 | G48: 650 | H48: =(3.3641676832383/$B$13)*0.04*1000 -> 5.25035924 | I48: 30.03046104 | J48: 5 | L48: 0 | M48: 4.004395468 | N48: 6.2
E49: =180/60 -> 3 | F49: 3 | G49: 650 | H49: =(3.55551489388092/$B$13)*0.04*1000 -> 5.5489893 | I49: 32.31241394 | J49: 6 | L49: 0 | M49: 3.999423396 | N49: 6.2
E50: 4 | F50: 4 | G50: 650 | H50: =(3.70550351387058/$B$13)*0.04*1000 -> 5.783072203 | I50: 34.62196201 | J50: 7 | L50: 0 | M50: 3.959571832 | N50: 6.2
E51: =300/60 -> 5 | F51: 5 | G51: 650 | H51: =(3.75899576236321/$B$13)*0.04*1000 -> 5.866556008 | I51: 35.8911369 | J51: 8 | L51: 0 | M51: 3.993419759 | N51: 6.2
E52: =360/60 -> 6 | F52: 6 | G52: 650 | H52: =(3.82951196380435/$B$13)*0.04*1000 -> 5.976608605 | I52: 36.25746734
E53: =420/60 -> 7 | F53: 7 | G53: 650 | H53: =(3.82622592701037/$B$13)*0.04*1000 -> 5.971480183 | I53: 36.5879345
E54: =480/60 -> 8 | F54: 8 | G54: 650 | H54: =(3.88396924353469/$B$13)*0.04*1000 -> 6.061598507 | I54: 37.06043264

Sheet lower T
D1: BL-405, BL-413 + BL-443 | J1: BL-493 | P1: BL-494
D2: [SM]0 | E2: 80 mM | J2: [SM]0 | K2: 80 mM | P2: [SM]0 | Q2: 80 mM
D3: [PhCO2H]0 | E3: 400 mM | H3: [P] / [side] | J3: [PhCO2H]0 | K3: 400 mM | N3: [P] / [side] | P3: [PhCO2H]0 | Q3: 400 mM | T3: [P] / [side]
D4: [NBS]0 | E4: 96 mM | H4: =I27/H27 -> 0.1917223768 | J4: [NBS]0 | K4: 96 mM | N4: =O26/N26 -> 0.195276388 | P4: [NBS]0 | Q4: 96 mM | T4: =U26/T26 -> 0.2397437919
D5: [(RO)2PO2H]0 | E5: 8 mM | H5: upper | I5: lower | J5: [(RO)2PO2H]0 | K5: 8 mM | N5: upper | O5: lower | P5: [(RO)2PO2H]0 | Q5: 8 mM | T5: upper | U5: lower
D6: [(4-Tol)2CO]0 | E6: 40 mM | F6: ← internal standard | J6: [(4-Tol)2CO]0 | K6: 40 mM | L6: ← internal standard | N6: =29.4472984826171/((3.36108389415757/$B$13)*0.04*1000) -> 5.61377136 | O6: =27.7597465324533/((3.58570082633612/$B$13)*0.04*1000) -> 4.960552609 | P6: [(4-Tol)2CO]0 | Q6: 40 mM | R6: ← internal standard | T6: =20.2329331145012/((2.76381859417105/$B$13)*0.04*1000) -> 4.690702899 | U6: =18.2286215075025/((3.14448522247529/$B$13)*0.04*1000) -> 3.714436038
D7: [P]0 | E7: 0 mM | J7: [P]0 | K7: 0 mM | P7: [P]0 | Q7: 0 mM
D8: [succinimide]0 | E8: 0 mM | J8: [succinimide]0 | K8: 0 mM | P8: [succinimide]0 | Q8: 0 mM
D9: T (°C) = | E9: 4 | J9: T (°C) = | K9: −15 | P9: T (°C) = | Q9: −30
D10: Experiment 1 | J10: Experiment 24 | P10: Experiment 25
D11: t (hours) | E11: dr (side) | F11: er | G11: area ratio side | H11: [P] (mM) | I11: [side] (mM) | J11: t (hours) | K11: dr (side) | L11: er | M11: area ratio side | N11: [P] (mM) | O11: [side] (mM) | P11: t (hours) | Q11: dr (side) | R11: er | S11: area ratio side | T11: [P] (mM) | U11: [side] (mM)
D12: =0/60 -> 0 | E12: − | F12: − | G12: 0 | H12: 0 | I12: =(G12/$B$13)*0.04*1000 -> 0 | J12: =0/60 -> 0 | K12: − | L12: − | M12: 0 | N12: 0 | O12: =(M12/$B$13)*0.04*1000 -> 0 | P12: 0 | Q12: − | R12: − | S12: 0 | T12: 0 | U12: =(S12/$B$13)*0.04*1000 -> 0
A13: calibration gradient | B13: 25.63 | D13: =2.5/60 -> 0.04166666667 | E13: 54 | F13: − | G13: 1.140771841 | H13: 3.98704226 | I13: =(G13/$B$13)*0.04*1000 -> 1.780369631 | J13: =7.5/60 -> 0.125 | K13: 54.8049812 | L13: − | M13: 0.6530181239 | N13: 2.819290638 | O13: =(M13/$B$13)*0.04*1000 -> 1.019146506 | P13: 0.125 | Q13: 54.40747297 | R13: − | S13: 0.6697405309 | T13: 1.768819741 | U13: =(S13/$B$13)*0.04*1000 -> 1.045244683
D14: =4/60 -> 0.06666666667 | E14: 54 | F14: − | G14: 1.14410741 | H14: 4.765385596 | I14: 1.785575357 | J14: =15/60 -> 0.25 | K14: 54.94918299 | L14: − | M14: 0.9863143616 | N14: 4.325998852 | O14: 1.539312308 | P14: 0.25 | Q14: 54.44416157 | R14: − | S14: 0.7618536213 | T14: 2.408634288 | U14: 1.18900292
D15: =7.5/60 -> 0.125 | E15: 55 | F15: 61 | G15: 1.36696483 | H15: 7.228659223 | I15: 2.13338249 | J15: =30/60 -> 0.5 | K15: 55.5114459 | L15: 61 | M15: 1.27029934 | N15: 7.030197792 | O15: 1.982519454 | P15: 0.5 | Q15: 55.35297916 | R15: 63 | S15: 1.038984836 | T15: 3.883437449 | U15: 1.621513595
D16: =15/60 -> 0.25 | E16: 56 | F16: 61 | G16: 1.854945723 | H16: 11.28373822 | I16: 2.894960161 | J16: =60/60 -> 1 | K16: 56.03067986 | L16: 61.5 | M16: 1.79458136 | N16: 11.34614768 | O16: 2.800751244 | P16: 1 | Q16: 55.77237655 | R16: 63 | S16: 1.456892984 | T16: 5.901647533 | U16: 2.27373076
D17: =30/60 -> 0.5 | E17: 56 | F17: 61 | G17: 2.408335331 | H17: 15.93759965 | I17: 3.758619323 | J17: =90/60 -> 1.5 | K17: 55.98753388 | L17: 61.5 | M17: 2.173090475 | N17: 14.08383696 | O17: 3.391479477 | P17: 1.5 | Q17: 56.14685566 | R17: 64 | S17: 1.678801718 | T17: 7.919340745 | U17: 2.620057305
D18: =45/60 -> 0.75 | E18: 56 | F18: 61 | G18: 2.759262942 | H18: 19.33692359 | I18: 4.306301899 | J18: =120/60 -> 2 | K18: 56.12123127 | L18: 61.5 | M18: 2.395030788 | N18: 16.63940887 | O18: 3.737855307 | P18: 2 | Q18: 56.03931713 | R18: 63.5 | S18: 1.885233413 | T18: 9.378220126 | U18: 2.942229283
D19: =60/60 -> 1 | E19: 56 | F19: 61 | G19: 2.995063658 | H19: 21.30960274 | I19: 4.67430926 | J19: =180/60 -> 3 | K19: 56.15560517 | L19: 61.5 | M19: 2.760808634 | N19: 19.97439392 | O19: 4.308714217 | P19: 3 | Q19: 55.99150491 | R19: 64 | S19: 2.208567125 | T19: 11.4314376 | U19: 3.446846859
D20: =90/60 -> 1.5 | E20: 56 | F20: 60 | G20: 3.243270909 | H20: 23.80324453 | I20: 5.061679141 | J20: =240/60 -> 4 | K20: 55.96541404 | L20: 61 | M20: 2.934619867 | N20: 22.03655149 | O20: 4.579976383 | P20: 4 | Q20: 56.39049844 | R20: 65 | S20: 2.395354475 | T20: 13.29303458 | U20: 3.738360476
D21: =120/60 -> 2 | E21: 56 | F21: 61 | G21: 3.444158098 | H21: 25.96426247 | I21: 5.375197968 | J21: =300/60 -> 5 | K21: 56.35547696 | L21: 61.5 | M21: 3.074231931 | N21: 23.99291974 | O21: 4.797864895 | P21: 5 | Q21: 56.18681023 | R21: 63.5 | S21: 2.566260358 | T21: 14.70836915 | U21: 4.005088347
D22: =180/60 -> 3 | E22: 56.56923917 | F22: 61 | G22: 3.606974142 | H22: 28.1740444 | I22: 5.62930026 | J22: =360/60 -> 6 | K22: 56.1140224 | L22: 62 | M22: 3.22537518 | N22: 25.479561 | O22: 5.033749794 | P22: 6 | Q22: 56.35535221 | R22: 64 | S22: 2.677365592 | T22: 16.22691239 | U22: 4.178487073
D23: =240/60 -> 4 | E23: 56 | F23: 61 | G23: 3.745140399 | H23: 29.69908159 | I23: 5.844932344 | J23: =420/60 -> 7 | K23: 55.98436468 | L23: 61 | M23: 3.306543863 | N23: 26.45736894 | O23: 5.16042741 | P23: 7 | Q23: 56.2070026 | R23: 64 | S23: 2.767836046 | T23: 16.98257685 | U23: 4.319681694
D24: =300/60 -> 5 | E24: 56 | F24: 61 | G24: 3.834858319 | H24: 30.79042491 | I24: 5.984952507 | J24: =480/60 -> 8 | K24: 56.06957281 | L24: 61.5 | M24: 3.307756801 | N24: 26.80275296 | O24: 5.162320408 | P24: 8 | Q24: 56.50582547 | R24: 63.5 | S24: 2.896547616 | T24: 17.90496684 | U24: 4.52055812
D25: =360/60 -> 6 | E25: 56 | F25: 61 | G25: 3.843865423 | H25: 31.21317415 | I25: 5.999009635 | J25: 9 | K25: 56.37543267 | L25: 61.5 | M25: 3.440190833 | N25: 27.56054767 | O25: 5.369006372 | P25: 9 | Q25: 56.31132488 | R25: 63.5 | S25: 2.899508877 | T25: 18.53968645 | U25: 4.525179675
D26: =420/60 -> 7 | E26: 56 | F26: 62 | G26: 3.862116652 | H26: 31.61273007 | I26: 6.027493799 | J26: 10 | K26: 56.2549302 | L26: 61.5 | M26: 3.47339236 | N26: 27.75974653 | O26: 5.420823036 | P26: 10 | Q26: 56.48830427 | R26: 63 | S26: 2.954151908 | T26: 19.23077731 | U26: 4.610459475
D27: =480/60 -> 8 | E27: 56 | F27: 61 | G27: 3.890674693 | H27: 31.67112577 | I27: 6.072063508
D28: BL-495
D29: [SM]0 | E29: 80 mM | J29: [SM]0 | P29: [SM]0
D30: [PhCO2H]0 | E30: 400 mM | H30: [P] / [side] | J30: [PhCO2H]0 | P30: [PhCO2H]0
D31: [NBS]0 | E31: 96 mM | H31: =I52/H52 -> 0.7006606893 | J31: [NBS]0 | P31: [NBS]0
D32: [(RO)2PO2H]0 | E32: 8 mM | H32: upper | I32: lower | J32: [(RO)2PO2H]0 | P32: [(RO)2PO2H]0
D33: [(4-Tol)2CO]0 | E33: 40 mM | F33: ← internal standard | H33: =3.37453725038145/((1.02402949709915/$B$13)*0.04*1000) -> 2.111496543 | I33: =1.6975747919196/((1.25308676783019/$B$13)*0.04*1000) -> 0.8680333045 | J33: [(4-Tol)2CO]0 | P33: [(4-Tol)2CO]0
D34: [P]0 | E34: 0 mM | J34: [P]0 | P34: [P]0
D35: [succinimide]0 | E35: 0 mM | J35: [succinimide]0 | P35: [succinimide]0
D36: T (°C) = | E36: −78 | J36: T (°C) = | P36: T (°C) =
D37: Experiment 26? | J37: Experiment X | P37: Experiment X
D38: t (hours) | E38: dr (side) | F38: er | G38: area ratio side | H38: [P] (mM) | I38: [side] (mM) | K38: [P]/[side] | L38: [P]/[side] | M38: [P]/[side] | N38: [P]/[side] | P38: t (hours) | Q38: dr (side) | R38: er | S38: area ratio side | T38: [P] (mM) | U38: [side] (mM)
D39: =0/60 -> 0 | E39: − | F39: − | G39: 0 | H39: 0 | I39: =(G39/$B$13)*0.04*1000 -> 0 | P39: 0
D40: =15/60 -> 0.25 | E40: 51.66289942 | F40: − | G40: 0.4881859319 | H40: 0.7950063411 | I40: =(G40/$B$13)*0.04*1000 -> 0.7618976697 | P40: 0.125
D41: =30/60 -> 0.5 | E41: 53.9284766 | F41: − | G41: 0.4532454549 | H41: 0.8491707382 | I41: 0.7073670776 | P41: 0.25
D42: =60/60 -> 1 | E42: 52.53907131 | F42: − | G42: 0.608355377 | H42: 1.107589585 | I42: 0.9494426484 | P42: 0.5
D43: =90/60 -> 1.5 | E43: 51.18375683 | F43: − | G43: 0.6949721217 | H43: 1.255874284 | I43: 1.084622898 | P43: 1
D44: =120/60 -> 2 | E44: 51.93302694 | F44: − | G44: 0.5848398395 | H44: 1.490364388 | I44: 0.9127426289 | P44: 1.5
D45: =180/60 -> 3 | E45: 52.82975561 | F45: − | G45: 0.7046601296 | H45: 1.099176291 | I45: 1.099742691 | P45: 2
D46: =240/60 -> 4 | E46: 53.50148797 | F46: − | G46: 0.7405029354 | H46: 1.608137715 | I46: 1.155681522 | P46: 3
D47: =300/60 -> 5 | E47: 54.38122852 | F47: − | G47: 0.8548686816 | H47: 1.958366548 | I47: 1.334168836 | P47: 4
D48: =360/60 -> 6 | E48: 53.64196361 | F48: − | G48: 0.9741451786 | H48: 1.597428668 | I48: 1.520320216 | P48: 5
D49: =420/60 -> 7 | E49: 54.20406586 | F49: − | G49: 0.876954751 | H49: 1.488030691 | I49: 1.368637926 | P49: 6
D50: =480/60 -> 8 | E50: 54.09152269 | F50: − | G50: 0.9768801028 | H50: 1.813076058 | I50: 1.524588533 | P50: 7
D51: =540/60 -> 9 | E51: 54.16713638 | F51: − | G51: 1.093973532 | H51: 2.171374626 | I51: 1.707332863 | P51: 8
D52: =600/60 -> 10 | E52: 54.55503344 | F52: 69 | G52: 1.138558132 | H52: 2.536056021 | I52: 1.77691476 | P52: 9
E72: ln(er) 8 h | F72: 1/RT
E73: =LN(F27/(100-F27)) -> 0.447312218 | F73: =1/(8.314*(4+273.15)) -> 0.0004339853776
E74: =LN(L24/(100-L24)) -> 0.4683789335 | F74: =1/(8.314*(-15+273.15)) -> 0.0004659269703
E75: =LN(R24/(100-R24)) -> 0.5537276453 | F75: =1/(8.314*(-30+273.15)) -> 0.0004946701517

Sheet same-excess (side low conc)
E1: BL-440 | J1: BL-503 | O1: BL-504
E2: [SM]0 | F2: 8.0 mM | J2: [SM]0 | K2: 6.0 mM | O2: [SM]0 | P2: 6.0 mM
E3: [PhCO2H]0 | F3: 0 mM | J3: [PhCO2H]0 | K3: 0 mM | O3: [PhCO2H]0 | P3: 0 mM
E4: [NBS]0 | F4: 9.6 mM | J4: [NBS]0 | K4: 7.6 mM | O4: [NBS]0 | P4: 7.6 mM
E5: [(RO)2PO2H]0 | F5: 8.0 mM | J5: [(RO)2PO2H]0 | K5: 6.0 mM | O5: [(RO)2PO2H]0 | P5: 6.0 mM
E6: [(4-Tol)2CO]0 | F6: 40 mM | G6: ← internal standard | J6: [(4-Tol)2CO]0 | K6: 40 mM | L6: ← internal standard | O6: [(4-Tol)2CO]0 | P6: 40 mM | Q6: ← internal standard
E7: [P]0 | F7: 0 mM | J7: [P]0 | K7: 0 mM | O7: [P]0 (50:50 er) | P7: 0 mM
E8: [succinimide]0 | F8: 0 mM | J8: [succinimide]0 | K8: 0 mM | O8: [succinimide]0 | P8: 2.0 mM
E10: Experiment 18 | J10: Experiment 26 | O10: Experiment 27
E11: t (hours) | F11: shifted t | G11: area ratio | H11: [P] (mM) | J11: t (hours) | K11: shifted t | L11: area ratio | M11: [P] (mM) | N11: [P] + 2 (mM) | O11: t (hours) | P11: shifted t | Q11: area ratio | R11: [P] (mM) | S11: [P] + 2 (mM)
A12: shifted t, P | B12: 1.3 | E12: =0/60 -> 0 | G12: 0 | H12: =(G12/$B$13)*0.04*1000 -> 0 | J12: =0/60 -> 0 | K12: =J12+$B$12 -> 1.3 | L12: 0 | M12: =(L12/$B$13)*0.04*1000 -> 0 | N12: =M12+$B$14 -> 2 | O12: =0/60 -> 0 | P12: =O12+$B$12 -> 1.3 | Q12: 0 | R12: =(Q12/$B$13)*0.04*1000 -> 0 | S12: =R12+$B$14 -> 2
A13: calibration gradient | B13: 25.62849132 | E13: =7.5/60 -> 0.125 | G13: 0.3357023011 | H13: =(G13/$B$13)*0.04*1000 -> 0.5239517175 | J13: =7.5/60 -> 0.125 | K13: =J13+$B$12 -> 1.425 | L13: 0.2711531978 | M13: =(L13/$B$13)*0.04*1000 -> 0.4232058678 | N13: =M13+$B$14 -> 2.423205868 | O13: =5/60 -> 0.08333333333 | P13: =O13+$B$12 -> 1.383333333 | Q13: 0.1484415675 | R13: =(Q13/$B$13)*0.04*1000 -> 0.2316821004 | S13: =R13+$B$14 -> 2.2316821
A14: shifted [P] (mM) | B14: 2 | E14: =15/60 -> 0.25 | G14: 0.4698638043 | H14: 0.7333460224 | J14: =15/60 -> 0.25 | K14: 1.55 | L14: 0.3305146466 | M14: 0.5158550184 | N14: 2.515855018 | O14: =10/60 -> 0.1666666667 | P14: =O14+$B$12 -> 1.466666667 | Q14: 0.1881936968 | R14: 0.2937257515 | S14: 2.293725751
E15: =30/60 -> 0.5 | G15: 0.725776311 | H15: 1.132764784 | J15: =30/60 -> 0.5 | K15: 1.8 | L15: 0.4121552932 | M15: 0.6432767157 | N15: 2.643276716 | O15: =22.5/60 -> 0.375 | P15: 1.675 | Q15: 0.2546086024 | R15: 0.3973836761 | S15: 2.397383676
E16: =60/60 -> 1 | G16: 1.079154719 | H16: 1.684304715 | J16: =60/60 -> 1 | K16: 2.3 | L16: 0.499017564 | M16: 0.7788481306 | N16: 2.778848131 | O16: =46/60 -> 0.7666666667 | P16: 2.066666667 | Q16: 0.3782456566 | R16: 0.5903518109 | S16: 2.590351811
E17: =90/60 -> 1.5 | G17: 1.303433666 | H17: 2.034350988 | J17: =90/60 -> 1.5 | K17: 2.8 | L17: 0.6132033213 | M17: 0.9570650314 | N17: 2.957065031 | O17: =75/60 -> 1.25 | P17: 2.55 | Q17: 0.4926784095 | R17: 0.7689542131 | S17: 2.768954213
E18: =120/60 -> 2 | G18: 1.467774287 | H18: 2.290847742 | J18: =120/60 -> 2 | K18: 3.3 | L18: 0.6978044446 | M18: 1.089107331 | N18: 3.089107331 | O18: =105/60 -> 1.75 | P18: 3.05 | Q18: 0.5699174598 | R18: 0.889506062 | S18: 2.889506062
E19: =180/60 -> 3 | G19: 1.726118887 | H19: 2.694062425 | J19: =180/60 -> 3 | K19: 4.3 | L19: 0.8111374068 | M19: 1.265993221 | N19: 3.265993221 | O19: =150/60 -> 2.5 | P19: 3.8 | Q19: 0.6433434604 | R19: 1.004106644 | S19: 3.004106644
E20: =240/60 -> 4 | G20: 1.88016849 | H20: 2.934497339 | J20: =240/60 -> 4 | K20: 5.3 | L20: 0.8769602284 | M20: 1.368727043 | N20: 3.368727043 | O20: =210/60 -> 3.5 | P20: 4.8 | Q20: 0.7688278438 | R20: 1.199958022 | S20: 3.199958022
E21: =300/60 -> 5 | G21: 2.00718143 | H21: 3.132734432 | J21: =300/60 -> 5 | K21: 6.3 | L21: 0.9609240203 | M21: 1.499774619 | N21: 3.499774619 | O21: =270/60 -> 4.5 | P21: 5.8 | Q21: 0.8416363846 | R21: 1.313594896 | S21: 3.313594896
E22: =360/60 -> 6 | G22: 2.097789213 | H22: 3.274151704 | J22: =360/60 -> 6 | K22: 7.3 | L22: 1.036731472 | M22: 1.618092082 | N22: 3.618092082 | O22: =330/60 -> 5.5 | P22: 6.8 | Q22: 0.9066117411 | R22: 1.415006025 | S22: 3.415006025
E23: =420/60 -> 7 | G23: 2.211139675 | H23: 3.451064906 | J23: =420/60 -> 7 | K23: 8.3 | L23: 1.084368082 | M23: 1.692441538 | N23: 3.692441538 | O23: =390/60 -> 6.5 | P23: 7.8 | Q23: 0.9350376518 | R23: 1.459372134 | S23: 3.459372134
E24: =480/60 -> 8 | G24: 2.274726186 | H24: 3.550308377 | J24: =480/60 -> 8 | K24: 9.3 | L24: 1.123614541 | M24: 1.753695959 | N24: 3.753695959 | O24: =450/60 -> 7.5 | P24: 8.8 | Q24: 1.003294436 | R24: 1.565904794 | S24: 3.565904794
O25: =510/60 -> 8.5 | P25: 9.8 | Q25: 1.043445665 | R25: 1.628571346 | S25: 3.628571346

Sheet NBS order (side prod low conc)
E1: BL-440 | J1: BL-441
E2: [SM]0 | F2: 8.0 mM | J2: [SM]0 | K2: 8.0 mM
E3: [PhCO2H]0 | F3: 0 mM | J3: [PhCO2H]0 | K3: 0 mM
E4: [NBS]0 | F4: 9.6 mM | J4: [NBS]0 | K4: 6.4 mM
E5: [(RO)2PO2H]0 | F5: 8.0 mM | J5: [(RO)2PO2H]0 | K5: 8.0 mM
E6: [(4-Tol)2CO]0 | F6: 40 mM | G6: ← internal standard | J6: [(4-Tol)2CO]0 | K6: 40 mM | L6: ← internal standard
E7: [P]0 | F7: 0 mM | J7: [P]0 | K7: 0 mM
E8: [succinimide]0 | F8: 0 mM | J8: [succinimide]0 | K8: 0 mM
E10: Experiment 18 | J10: Experiment 19
E11: t (hours) | F11: shifted t | G11: [NBS] (mM) | H11: area ratio | I11: [P] (mM) | J11: t (hours) | K11: shifted t | L11: [NBS] (mM) | M11: area ratio | N11: [P] (mM)
A12: order in NBS | B12: 1 | E12: =0/60 -> 0 | F12: 0 | G12: =9.6-I12 -> 9.6 | H12: 0 | I12: =(H12/$B$13)*0.04*1000 -> 0 | J12: =0/60 -> 0 | K12: 0 | L12: =6.4-N12 -> 6.4 | M12: 0 | N12: =(M12/$B$13)*0.04*1000 -> 0
A13: calibration gradient | B13: 25.62849132 | E13: =7.5/60 -> 0.125 | F13: =F12+((G13+G12)/2)^$B$12*(E13-E12) -> 1.167253018 | G13: =9.6-I13 -> 9.076048283 | H13: 0.3357023011 | I13: =(H13/$B$13)*0.04*1000 -> 0.5239517175 | J13: =7.5/60 -> 0.125 | K13: =K12+((L13+L12)/2)^$B$12*(J13-J12) -> 0.7749408 | L13: =6.4-N13 -> 5.999052799 | M13: 0.2568917962 | N13: =(M13/$B$13)*0.04*1000 -> 0.4009472005
E14: =15/60 -> 0.25 | F14: =F13+((G14+G13)/2)^$B$12*(E14-E13) -> 2.288671909 | G14: 8.866653978 | H14: 0.4698638043 | I14: 0.7333460224 | J14: =15/60 -> 0.25 | K14: =K13+((L14+L13)/2)^$B$12*(J14-J13) -> 1.512065667 | L14: 5.794945079 | M14: 0.3876661197 | N14: 0.6050549208
E15: =30/60 -> 0.5 | F15: 4.455408058 | G15: 8.467235216 | H15: 0.725776311 | I15: 1.132764784 | J15: =30/60 -> 0.5 | K15: 2.924051785 | L15: 5.500943862 | M15: 0.5760363108 | N15: 0.899056138
E16: =60/60 -> 1 | F16: 8.551140683 | G16: 7.915695285 | H16: 1.079154719 | I16: 1.684304715 | J16: =60/60 -> 1 | K16: 5.559359828 | L16: 5.04028831 | M16: 0.8711839811 | N16: 1.35971169
E17: =90/60 -> 1.5 | F17: 12.42147676 | G17: 7.565649012 | H17: 1.303433666 | I17: 2.034350988 | J17: =90/60 -> 1.5 | K17: 8.000732315 | L17: 4.725201636 | M17: 1.073063883 | N17: 1.674798364
E18: =120/60 -> 2 | F18: 16.14017708 | G18: 7.309152258 | H18: 1.467774287 | I18: 2.290847742 | J18: =120/60 -> 2 | K18: 10.2996531 | L18: 4.470481522 | M18: 1.236266189 | N18: 1.929518478
E19: =180/60 -> 3 | F19: 23.24772199 | G19: 6.905937575 | H19: 1.726118887 | I19: 2.694062425 | J19: =180/60 -> 3 | K19: 14.61806006 | L19: 4.166332383 | M19: 1.431138279 | N19: 2.233667617
E20: =240/60 -> 4 | F20: 30.03344211 | G20: 6.665502661 | H20: 1.88016849 | I20: 2.934497339 | J20: =240/60 -> 4 | K20: 18.68380499 | L20: 3.96515748 | M20: 1.56003351 | N20: 2.43484252
E21: =300/60 -> 5 | F21: 36.59982622 | G21: 6.467265568 | H21: 2.00718143 | I21: 3.132734432 | J21: =300/60 -> 5 | K21: 22.53066385 | L21: 3.728560244 | M21: 1.711624265 | N21: 2.671439756
E22: =360/60 -> 6 | F22: 42.99638316 | G22: 6.325848296 | H22: 2.097789213 | I22: 3.274151704 | J22: =360/60 -> 6 | K22: 26.2006739 | L22: 3.61145986 | M22: 1.78665192 | N22: 2.78854014
E23: =420/60 -> 7 | F23: 49.23377485 | G23: 6.148935094 | H23: 2.211139675 | I23: 3.451064906 | J23: =420/60 -> 7 | K23: 29.75449888 | L23: 3.496190102 | M23: 1.860506669 | N23: 2.903809898
E24: =480/60 -> 8 | F24: 55.33308821 | G24: 6.049691623 | H24: 2.274726186 | I24: 3.550308377 | J24: =480/60 -> 8 | K24: 33.18821172 | L24: 3.371235568 | M24: 1.940566574 | N24: 3.028764432

Sheet cat order (side prod low conc)
E1: BL-440 | J1: BL-442
E2: [SM]0 | F2: 8.0 mM | J2: [SM]0 | K2: 8.0 mM
E3: [PhCO2H]0 | F3: 0 mM | J3: [PhCO2H]0 | K3: 0 mM
E4: [NBS]0 | F4: 9.6 mM | J4: [NBS]0 | K4: 9.6 mM
E5: [(RO)2PO2H]0 | F5: 8.0 mM | J5: [(RO)2PO2H]0 | K5: 5.0 mM
E6: [(4-Tol)2CO]0 | F6: 40 mM | G6: ← internal standard | J6: [(4-Tol)2CO]0 | K6: 40 mM | L6: ← internal standard
E7: [P]0 | F7: 0 mM | J7: [P]0 | K7: 0 mM
E8: [succinimide]0 | F8: 0 mM | J8: [succinimide]0 | K8: 0 mM
E10: Experiment 18 | J10: Experiment 20
E11: t (hours) | F11: shifted t | G11: [cat] (mM) | H11: area ratio | I11: [P] (mM) | J11: t (hours) | K11: shifted t | L11: [cat] (mM) | M11: area ratio | N11: [P] (mM)
A12: order in cat | B12: 1 | E12: =0/60 -> 0 | F12: 0 | G12: =(8*0.89)-I12 -> 7.12 | H12: 0 | I12: =(H12/$B$13)*0.04*1000 -> 0 | J12: =0/60 -> 0 | K12: 0 | L12: =(5*0.89)-N12 -> 4.45 | M12: 0 | N12: =(M12/$B$13)*0.04*1000 -> 0
A13: calibration gradient | B13: 25.62849132 | E13: =7.5/60 -> 0.125 | F13: =F12+((G13+G12)/2)^$B$12*(E13-E12) -> 0.8572530177 | G13: =(8*0.89)-I13 -> 6.596048283 | H13: 0.3357023011 | I13: =(H13/$B$13)*0.04*1000 -> 0.5239517175 | J13: =7.5/60 -> 0.125 | K13: =K12+((L13+L12)/2)^$B$12*(J13-J12) -> 0.5311241509 | L13: =(5*0.89)-N13 -> 4.047986414 | M13: 0.2575750425 | N13: =(M13/$B$13)*0.04*1000 -> 0.4020135859
E14: =15/60 -> 0.25 | F14: =F13+((G14+G13)/2)^$B$12*(E14-E13) -> 1.668671909 | G14: 6.386653978 | H14: 0.4698638043 | I14: 0.7333460224 | J14: =15/60 -> 0.25 | K14: =K13+((L14+L13)/2)^$B$12*(J14-J13) -> 1.026431041 | L14: 3.876923824 | M14: 0.3671769452 | N14: 0.5730761761
E15: =30/60 -> 0.5 | F15: 3.215408058 | G15: 5.987235216 | H15: 0.725776311 | I15: 1.132764784 | J15: =30/60 -> 0.5 | K15: 1.956025624 | L15: 3.559832841 | M15: 0.570341033 | N15: 0.8901671594
E16: =60/60 -> 1 | F16: 6.071140683 | G16: 5.435695285 | H16: 1.079154719 | I16: 1.684304715 | J16: =60/60 -> 1 | K16: 3.623822635 | L16: 3.111355206 | M16: 0.8576861623 | N16: 1.338644794
E17: =90/60 -> 1.5 | F17: 8.701476758 | G17: 5.085649012 | H17: 1.303433666 | I17: 2.034350988 | J17: =90/60 -> 1.5 | K17: 5.108013402 | L17: 2.825407859 | M17: 1.04089614 | N17: 1.624592141
E18: =120/60 -> 2 | F18: 11.18017708 | G18: 4.829152258 | H18: 1.467774287 | I18: 2.290847742 | J18: =120/60 -> 2 | K18: 6.462178315 | L18: 2.591251796 | M18: 1.190922806 | N18: 1.858748204
E19: =180/60 -> 3 | F19: 15.80772199 | G19: 4.425937575 | H19: 1.726118887 | I19: 2.694062425 | J19: =180/60 -> 3 | K19: 8.907593143 | L19: 2.29957786 | M19: 1.377801879 | N19: 2.15042214
E20: =240/60 -> 4 | F20: 20.11344211 | G20: 4.185502661 | H20: 1.88016849 | I20: 2.934497339 | J20: =240/60 -> 4 | K20: 11.11036246 | L20: 2.105960768 | M20: 1.501854728 | N20: 2.344039232
E21: =300/60 -> 5 | F21: 24.19982622 | G21: 3.987265568 | H21: 2.00718143 | I21: 3.132734432 | J21: =300/60 -> 5 | K21: 13.14081949 | L21: 1.954953288 | M21: 1.598607075 | N21: 2.495046712
E22: =360/60 -> 6 | F22: 28.11638316 | G22: 3.845848296 | H22: 2.097789213 | I22: 3.274151704 | J22: =360/60 -> 6 | K22: 15.00163739 | L22: 1.766682526 | M22: 1.719234465 | N22: 2.683317474
E23: =420/60 -> 7 | F23: 31.87377485 | G23: 3.668935094 | H23: 2.211139675 | I23: 3.451064906 | J23: =420/60 -> 7 | K23: 16.72064972 | L23: 1.67134213 | M23: 1.780320228 | N23: 2.77865787
E24: =480/60 -> 8 | F24: 35.49308821 | G24: 3.569691623 | H24: 2.274726186 | I24: 3.550308377 | J24: =480/60 -> 8 | K24: 18.35363102 | L24: 1.594620479 | M24: 1.829476732 | N24: 2.855379521

Sheet SM order (side prod low conc)
E1: BL-440 | J1: BL-444
E2: [SM]0 | F2: 8.0 mM | J2: [SM]0 | K2: 4.0 mM
E3: [PhCO2H]0 | F3: 0 mM | J3: [PhCO2H]0 | K3: 0 mM
E4: [NBS]0 | F4: 9.6 mM | J4: [NBS]0 | K4: 9.6 mM
E5: [(RO)2PO2H]0 | F5: 8.0 mM | J5: [(RO)2PO2H]0 | K5: 8.0 mM
E6: [(4-Tol)2CO]0 | F6: 40 mM | G6: ← internal standard | J6: [(4-Tol)2CO]0 | K6: 40 mM | L6: ← internal standard
E7: [P]0 | F7: 0 mM | J7: [P]0 | K7: 0 mM
E8: [succinimide]0 | F8: 0 mM | J8: [succinimide]0 | K8: 0 mM
E10: Experiment 1 | J10: Experiment 21
E11: t (hours) | F11: shifted t | G11: [SM] (mM) | H11: area ratio | I11: [P] (mM) | J11: t (hours) | K11: shifted t | L11: [SM] (mM) | M11: area ratio | N11: [P] (mM)
A12: order in alkene | B12: 0 | E12: =0/60 -> 0 | F12: 0 | G12: =(8*0.89)-I12 -> 7.12 | H12: 0 | I12: =(H12/$B$13)*0.04*1000 -> 0 | J12: =0/60 -> 0 | K12: 0 | L12: =(4*0.89)-N12 -> 3.56 | M12: 0 | N12: =(M12/$B$13)*0.04*1000 -> 0
A13: calibration gradient | B13: 25.62849132 | E13: =7.5/60 -> 0.125 | F13: =F12+((G13+G12)/2)^$B$12*(E13-E12) -> 0.125 | G13: =(8*0.89)-I13 -> 6.596048283 | H13: 0.3357023011 | I13: =(H13/$B$13)*0.04*1000 -> 0.5239517175 | J13: =7.5/60 -> 0.125 | K13: =K12+((L13+L12)/2)^$B$12*(J13-J12) -> 0.125 | L13: =(4*0.89)-N13 -> 3.236776342 | M13: 0.207093368 | N13: =(M13/$B$13)*0.04*1000 -> 0.3232236582
E14: =15/60 -> 0.25 | F14: =F13+((G14+G13)/2)^$B$12*(E14-E13) -> 0.25 | G14: 6.386653978 | H14: 0.4698638043 | I14: 0.7333460224 | J14: =15/60 -> 0.25 | K14: =K13+((L14+L13)/2)^$B$12*(J14-J13) -> 0.25 | L14: 3.109567971 | M14: 0.288597334 | N14: =(M14/$B$13)*0.04*1000 -> 0.4504320295
E15: =30/60 -> 0.5 | F15: 0.5 | G15: 5.987235216 | H15: 0.725776311 | I15: 1.132764784 | J15: =30/60 -> 0.5 | K15: 0.5 | L15: 2.852383839 | M15: 0.4533783659 | N15: 0.7076161608
E16: =60/60 -> 1 | F16: 1 | G16: 5.435695285 | H16: 1.079154719 | I16: 1.684304715 | J16: =60/60 -> 1 | K16: 1 | L16: 2.512787375 | M16: 0.6709619917 | N16: 1.047212625
E17: =90/60 -> 1.5 | F17: 1.5 | G17: 5.085649012 | H17: 1.303433666 | I17: 2.034350988 | J17: =90/60 -> 1.5 | K17: 1.5 | L17: 2.261754127 | M17: 0.8318020773 | N17: 1.298245873
E18: =120/60 -> 2 | F18: 2 | G18: 4.829152258 | H18: 1.467774287 | I18: 2.290847742 | J18: =120/60 -> 2 | K18: 2 | L18: 2.001701275 | M18: 0.9984211338 | N18: 1.558298725
E19: =180/60 -> 3 | F19: 3 | G19: 4.425937575 | H19: 1.726118887 | I19: 2.694062425 | J19: =180/60 -> 3 | K19: 3 | L19: 1.760681107 | M19: 1.152845716 | N19: 1.799318893
E20: =240/60 -> 4 | F20: 4 | G20: 4.185502661 | H20: 1.88016849 | I20: 2.934497339 | J20: =240/60 -> 4 | K20: 4 | L20: 1.537186765 | M20: 1.296041286 | N20: 2.022813235
E21: =300/60 -> 5 | F21: 5 | G21: 3.987265568 | H21: 2.00718143 | I21: 3.132734432 | J21: =300/60 -> 5 | K21: 5 | L21: 1.383381166 | M21: 1.394586423 | N21: 2.176618834
E22: =360/60 -> 6 | F22: 6 | G22: 3.845848296 | H22: 2.097789213 | I22: 3.274151704 | J22: =360/60 -> 6 | K22: 6 | L22: 1.259476419 | M22: 1.473973716 | N22: 2.300523581
E23: =420/60 -> 7 | F23: 7 | G23: 3.668935094 | H23: 2.211139675 | I23: 3.451064906 | J23: =420/60 -> 7 | K23: 7 | L23: 1.175982394 | M23: 1.527469363 | N23: 2.384017606
E24: =480/60 -> 8 | F24: 8 | G24: 3.569691623 | H24: 2.274726186 | I24: 3.550308377 | J24: =480/60 -> 8 | K24: 8 | L24: 1.05300427 | M24: 1.606262958 | N24: 2.50699573

Sheet IS order (side prod low conc)
E1: BL-440 | J1: BL-466
E2: [SM]0 | F2: 8.0 mM | J2: [SM]0 | K2: 8.0 mM
E3: [PhCO2H]0 | F3: 0 mM | J3: [PhCO2H]0 | K3: 0 mM
E4: [NBS]0 | F4: 9.6 mM | J4: [NBS]0 | K4: 9.6 mM
E5: [(RO)2PO2H]0 | F5: 8.0 mM | J5: [(RO)2PO2H]0 | K5: 8.0 mM
E6: [(4-Tol)2CO]0 | F6: 40 mM | G6: ← internal standard | J6: [(4-Tol)2CO]0 | K6: 20 mM | L6: ← internal standard
E7: [P]0 | F7: 0 mM | J7: [P]0 | K7: 0 mM
E8: [succinimide]0 | F8: 0 mM | J8: [succinimide]0 | K8: 0 mM
E10: Experiment 1 | J10: Experiment 24
E11: t (hours) | F11: shifted t | G11: [IS] (mM) | H11: area ratio | I11: [P] (mM) | J11: t (hours) | K11: shifted t | L11: [IS] (mM) | M11: area ratio | N11: [P] (mM)
A12: order in IS | B12: 0 | E12: =0/60 -> 0 | F12: 0 | G12: =40-I12 -> 40 | H12: 0 | I12: =(H12/$B$13)*0.04*1000 -> 0 | J12: =0/60 -> 0 | K12: 0 | L12: =20-N12 -> 20 | M12: 0 | N12: =(M12/$B$13)*0.02*1000 -> 0
A13: calibration gradient | B13: 25.62849132 | E13: =7.5/60 -> 0.125 | F13: =F12+((G13+G12)/2)^$B$12*(E13-E12) -> 0.125 | G13: 40 | H13: 0.3357023011 | I13: =(H13/$B$13)*0.04*1000 -> 0.5239517175 | J13: =7.5/60 -> 0.125 | K13: =K12+((L13+L12)/2)^$B$12*(J13-J12) -> 0.125 | L13: 20 | M13: 0.2301886602 | N13: =(M13/$B$13)*0.02*1000 -> 0.1796349674
E14: =15/60 -> 0.25 | F14: =F13+((G14+G13)/2)^$B$12*(E14-E13) -> 0.25 | G14: 40 | H14: 0.4698638043 | I14: 0.7333460224 | J14: =15/60 -> 0.25 | K14: =K13+((L14+L13)/2)^$B$12*(J14-J13) -> 0.25 | L14: 20 | M14: 0.2967134707 | N14: =(M14/$B$13)*0.02*1000 -> 0.2315496976
E15: =30/60 -> 0.5 | F15: 0.5 | G15: 40 | H15: 0.725776311 | I15: 1.132764784 | J15: =30/60 -> 0.5 | K15: 0.5 | L15: 20 | M15: 0.3522500335 | N15: 0.2748894026
E16: =60/60 -> 1 | F16: 1 | G16: 40 | H16: 1.079154719 | I16: 1.684304715 | J16: =60/60 -> 1 | K16: 1 | L16: 20 | M16: 0.4825721817 | N16: 0.3765903935
E17: =90/60 -> 1.5 | F17: 1.5 | G17: 40 | H17: 1.303433666 | I17: 2.034350988 | J17: =90/60 -> 1.5 | K17: 1.5 | L17: 20 | M17: 0.6324946918 | N17: 0.493587144
E18: =120/60 -> 2 | F18: 2 | G18: 40 | H18: 1.467774287 | I18: 2.290847742 | J18: =120/60 -> 2 | K18: 2 | L18: 20 | M18: 0.7443781811 | N18: 0.5808989469
E19: =180/60 -> 3 | F19: 3 | G19: 40 | H19: 1.726118887 | I19: 2.694062425 | J19: =180/60 -> 3 | K19: 3 | L19: 20 | M19: 0.9509025833 | N19: 0.7420667657
E20: =240/60 -> 4 | F20: 4 | G20: 40 | H20: 1.88016849 | I20: 2.934497339 | J20: =240/60 -> 4 | K20: 4 | L20: 20 | M20: 1.163171743 | N20: 0.9077176864
E21: =300/60 -> 5 | F21: 5 | G21: 40 | H21: 2.00718143 | I21: 3.132734432 | J21: =300/60 -> 5 | K21: 5 | L21: 20 | M21: 1.354471782 | N21: 1.057004695
E22: =360/60 -> 6 | F22: 6 | G22: 40 | H22: 2.097789213 | I22: 3.274151704 | J22: =360/60 -> 6 | K22: 6 | L22: 20 | M22: 1.492879897 | N22: 1.165015824
E23: =420/60 -> 7 | F23: 7 | G23: 40 | H23: 2.211139675 | I23: 3.451064906 | J23: =420/60 -> 7 | K23: 7 | L23: 20 | M23: 1.615979147 | N23: 1.261080199
E24: =480/60 -> 8 | F24: 8 | G24: 40 | H24: 2.274726186 | I24: 3.550308377 | J24: =480/60 -> 8 | K24: 8 | L24: 20 | M24: 1.762651335 | N24: 1.375540458

Sheet kobs (side prod low conc)
E1: BL-440 | L1: BL-442
E2: [SM]0 | F2: 8.0 mM | L2: [SM]0 | M2: 8.0 mM
E3: [PhCO2H]0 | F3: 0 mM | L3: [PhCO2H]0 | M3: 0 mM | U3: shifted t | V3: [P]
E4: [NBS]0 | F4: 9.6 mM | L4: [NBS]0 | M4: 9.6 mM | U4: =F12 -> 0 | V4: =K12 -> 0
E5: [(RO)2PO2H]0 | F5: 8.0 mM | L5: [(RO)2PO2H]0 | M5: 5.0 mM | U5: =F13 -> 61.94326531 | V5: =K13 -> 0.5239517175
E6: [(4-Tol)2CO]0 | F6: 40 mM | G6: ← internal standard | L6: [(4-Tol)2CO]0 | M6: 40 mM | N6: ← internal standard | U6: 115.6031912 | V6: 0.7333460224
E7: [P]0 | F7: 0 mM | L7: [P]0 | M7: 0 mM | U7: 210.338951 | V7: 1.132764784
E8: [succinimide]0 | F8: 0 mM | L8: [succinimide]0 | M8: 0 mM | U8: 364.5306888 | V8: 1.684304715
U9: 489.558269 | V9: 2.034350988
E10: Experiment 18 | L10: Experiment 20 | U10: 597.1712594 | V10: 2.290847742
A11: order in NBS | B11: 1 | E11: t (hours) | F11: shifted t | G11: [cat] (mM) | H11: [NBS] (mM) | I11: [SM] (mM) | J11: area ratio | K11: [P] (mM) | L11: t (hours) | M11: shifted t | N11: [cat] (mM) | O11: [NBS] (mM) | P11: [SM] (mM) | Q11: area ratio | R11: [P] (mM) | U11: 778.3170738 | V11: 2.694062425
A12: order in cat | B12: 1 | E12: =0/60 -> 0 | F12: 0 | G12: =(8*0.89)-K12 -> 7.12 | H12: =9.6-K12 -> 9.6 | I12: =8-K12 -> 8 | J12: 0 | K12: =(J12/$B$14)*0.04*1000 -> 0 | L12: =0/60 -> 0 | M12: 0 | N12: =(5*0.89)-R12 -> 4.45 | O12: =9.6-R12 -> 9.6 | P12: =8-R12 -> 8 | Q12: 0 | R12: =(Q12/$B$14)*0.04*1000 -> 0 | U12: 929.830393 | V12: 2.934497339
A13: order in SM | B13: 1 | E13: =7.5/60 -> 0.125 | F13: =F12+((G12+G13)/2)^$B$12*((H12+H13)/2)^$B$11*((I12+I13)/2)^$B$13*(E13-E12) -> 61.94326531 | G13: =(8*0.89)-K13 -> 6.596048283 | H13: =9.6-K13 -> 9.076048283 | I13: =8-K13 -> 7.476048283 | J13: 0.3357023011 | K13: =(J13/$B$14)*0.04*1000 -> 0.5239517175 | L13: =7.5/60 -> 0.125 | M13: =M12+((N12+N13)/2)^$B$12*((O12+O13)/2)^$B$11*((P12+P13)/2)^$B$13*(L13-L12) -> 38.93282589 | N13: =(5*0.89)-R13 -> 4.047986414 | O13: =9.6-R13 -> 9.197986414 | P13: =8-R13 -> 7.597986414 | Q13: 0.2575750425 | R13: =(Q13/$B$14)*0.04*1000 -> 0.4020135859 | U13: 1063.092224 | V13: 3.132734432
A14: calibration gradient | B14: 25.62849132 | E14: =15/60 -> 0.25 | F14: =F13+((G13+G14)/2)^$B$12*((H13+H14)/2)^$B$11*((I13+I14)/2)^$B$13*(E14-E13) -> 115.6031912 | G14: 6.386653978 | H14: 8.866653978 | I14: 7.266653978 | J14: 0.4698638043 | K14: 0.7333460224 | L14: =15/60 -> 0.25 | M14: =M13+((N13+N14)/2)^$B$12*((O13+O14)/2)^$B$11*((P13+P14)/2)^$B$13*(L14-L13) -> 72.84000512 | N14: 3.876923824 | O14: 9.026923824 | P14: 7.426923824 | Q14: 0.3671769452 | R14: 0.5730761761 | U14: 1183.257868 | V14: 3.274151704
E15: =30/60 -> 0.5 | F15: 210.338951 | G15: 5.987235216 | H15: 8.467235216 | I15: 6.867235216 | J15: 0.725776311 | K15: 1.132764784 | L15: =30/60 -> 0.5 | M15: 132.7604904 | N15: 3.559832841 | O15: 8.709832841 | P15: 7.109832841 | Q15: 0.570341033 | R15: 0.8901671594 | U15: 1291.941281 | V15: 3.451064906
E16: =60/60 -> 1 | F16: 364.5306888 | G16: 5.435695285 | H16: 7.915695285 | I16: 6.315695285 | J16: 1.079154719 | K16: 1.684304715 | L16: =60/60 -> 1 | M16: 230.207127 | N16: 3.111355206 | O16: 8.261355206 | P16: 6.661355206 | Q16: 0.8576861623 | R16: 1.338644794 | U16: 1391.265092 | V16: 3.550308377
E17: =90/60 -> 1.5 | F17: 489.558269 | G17: 5.085649012 | H17: 7.565649012 | I17: 5.965649012 | J17: 1.303433666 | K17: 2.034350988 | L17: =90/60 -> 1.5 | M17: 308.7485852 | N17: 2.825407859 | O17: 7.975407859 | P17: 6.375407859 | Q17: 1.04089614 | R17: 1.624592141 | U17: =M12 -> 0 | V17: =R12 -> 0
E18: =120/60 -> 2 | F18: 597.1712594 | G18: 4.829152258 | H18: 7.309152258 | I18: 5.709152258 | J18: 1.467774287 | K18: 2.290847742 | L18: =120/60 -> 2 | M18: 375.3464427 | N18: 2.591251796 | O18: 7.741251796 | P18: 6.141251796 | Q18: 1.190922806 | R18: 1.858748204 | U18: =M13 -> 38.93282589 | V18: =R13 -> 0.4020135859
E19: =180/60 -> 3 | F19: 778.3170738 | G19: 4.425937575 | H19: 6.905937575 | I19: 5.305937575 | J19: 1.726118887 | K19: 2.694062425 | L19: =180/60 -> 3 | M19: 486.7049182 | N19: 2.29957786 | O19: 7.44957786 | P19: 5.84957786 | Q19: 1.377801879 | R19: 2.15042214 | U19: 72.84000512 | V19: 0.5730761761
E20: =240/60 -> 4 | F20: 929.830393 | G20: 4.185502661 | H20: 6.665502661 | I20: 5.065502661 | J20: 1.88016849 | K20: 2.934497339 | L20: =240/60 -> 4 | M20: 579.8793853 | N20: 2.105960768 | O20: 7.255960768 | P20: 5.655960768 | Q20: 1.501854728 | R20: 2.344039232 | U20: 132.7604904 | V20: 0.8901671594
E21: =300/60 -> 5 | F21: 1063.092224 | G21: 3.987265568 | H21: 6.467265568 | I21: 4.867265568 | J21: 2.00718143 | K21: 3.132734432 | L21: =300/60 -> 5 | M21: 661.2402693 | N21: 1.954953288 | O21: 7.104953288 | P21: 5.504953288 | Q21: 1.598607075 | R21: 2.495046712 | U21: 230.207127 | V21: 1.338644794
E22: =360/60 -> 6 | F22: 1183.257868 | G22: 3.845848296 | H22: 6.325848296 | I22: 4.725848296 | J22: 2.097789213 | K22: 3.274151704 | L22: =360/60 -> 6 | M22: 734.5320521 | N22: 1.85433449 | O22: 7.00433449 | P22: 5.40433449 | Q22: 1.663074775 | R22: 2.59566551 | U22: 308.7485852 | V22: 1.624592141
E23: =420/60 -> 7 | F23: 1291.941281 | G23: 3.668935094 | H23: 6.148935094 | I23: 4.548935094 | J23: 2.211139675 | K23: 3.451064906 | L23: =420/60 -> 7 | M23: 802.9447906 | N23: 1.795410556 | O23: 6.945410556 | P23: 5.345410556 | Q23: 1.700828063 | R23: 2.654589444 | U23: 375.3464427 | V23: 1.858748204
E24: =480/60 -> 8 | F24: 1391.265092 | G24: 3.569691623 | H24: 6.049691623 | I24: 4.449691623 | J24: 2.274726186 | K24: 3.550308377 | L24: =480/60 -> 8 | M24: 866.2623889 | N24: 1.681045477 | O24: 6.831045477 | P24: 5.231045477 | Q24: 1.774103174 | R24: 2.768954523 | U24: 486.7049182 | V24: 2.15042214
U25: 579.8793853 | V25: 2.344039232
E26: BL-441 | L26: BL-444 | U26: 661.2402693 | V26: 2.495046712
E27: [SM]0 | F27: 8.0 mM | L27: [SM]0 | M27: 4.0 mM | U27: 734.5320521 | V27: 2.59566551
E28: [PhCO2H]0 | F28: 0 mM | L28: [PhCO2H]0 | M28: 0 mM | U28: 802.9447906 | V28: 2.654589444
E29: [NBS]0 | F29: 6.4 mM | L29: [NBS]0 | M29: 9.6 mM | U29: 866.2623889 | V29: 2.768954523
E30: [(RO)2PO2H]0 | F30: 8.0 mM | L30: [(RO)2PO2H]0 | M30: 8.0 mM | U30: =F37 -> 0 | V30: =K37 -> 0
E31: [(4-Tol)2CO]0 | F31: 40 mM | G31: ← internal standard | L31: [(4-Tol)2CO]0 | M31: 40 mM | N31: ← internal standard | U31: =F38 -> 41.82280237 | V31: =K38 -> 0.4009472005
E32: [P]0 | F32: 0 mM | L32: [P]0 | M32: 0 mM | U32: 78.38982303 | V32: 0.6050549208
E33: [succinimide]0 | F33: 0 mM | L33: [succinimide]0 | M33: 0 mM | U33: 143.5593475 | V33: 0.899056138
U34: 252.0265795 | V34: 1.35971169
E35: Experiment 19 | L35: Experiment 21 | U35: 340.7000769 | V35: 1.674798364
E36: t (hours) | F36: shifted t | G36: [cat] (mM) | H36: [NBS] (mM) | I36: [SM] (mM) | J36: area ratio | K36: [P] (mM) | L36: t (hours) | M36: shifted t | N36: [cat] (mM) | O36: [NBS] (mM) | P36: [SM] (mM) | Q36: area ratio | R36: [P] (mM) | U36: 416.4705282 | V36: 1.929518478
E37: 0 | F37: 0 | G37: =(8*0.89)-K37 -> 7.12 | H37: =6.4-K37 -> 6.4 | I37: =8-K37 -> 8 | J37: 0 | K37: =(J37/$B$14)*0.04*1000 -> 0 | L37: 0 | M37: 0 | N37: =(8*0.89)-R37 -> 7.12 | O37: =9.6-R37 -> 9.6 | P37: =4-R37 -> 4 | Q37: 0 | R37: =(Q37/$B$14)*0.04*1000 -> 0 | U37: 545.2425852 | V37: 2.233667617
E38: 0.125 | F38: =F37+((G37+G38)/2)^$B$12*((H37+H38)/2)^$B$11*((I37+I38)/2)^$B$13*(E38-E37) -> 41.82280237 | G38: =(8*0.89)-K38 -> 6.719052799 | H38: =6.4-K38 -> 5.999052799 | I38: =8-K38 -> 7.599052799 | J38: 0.2568917962 | K38: =(J38/$B$14)*0.04*1000 -> 0.4009472005 | L38: 0.125 | M38: =M37+((N37+N38)/2)^$B$12*((O37+O38)/2)^$B$11*((P37+P38)/2)^$B$13*(L38-L37) -> 31.51123262 | N38: =(8*0.89)-R38 -> 6.796776342 | O38: =9.6-R38 -> 9.276776342 | P38: =4-R38 -> 3.676776342 | Q38: 0.207093368 | R38: =(Q38/$B$14)*0.04*1000 -> 0.3232236582 | U38: 655.4844869 | V38: 2.43484252
E39: 0.25 | F39: =F38+((G38+G39)/2)^$B$12*((H38+H39)/2)^$B$11*((I38+I39)/2)^$B$13*(E39-E38) -> 78.38982303 | G39: 6.514945079 | H39: 5.794945079 | I39: 7.394945079 | J39: 0.3876661197 | K39: 0.6050549208 | L39: 0.25 | M39: =M38+((N38+N39)/2)^$B$12*((O38+O39)/2)^$B$11*((P38+P39)/2)^$B$13*(L39-L38) -> 59.52861601 | N39: 6.669567971 | O39: 9.149567971 | P39: 3.549567971 | Q39: 0.288597334 | R39: 0.4504320295 | U39: 751.1752383 | V39: 2.671439756
E40: 0.5 | F40: 143.5593475 | G40: 6.220943862 | H40: 5.500943862 | I40: 7.100943862 | J40: 0.5760363108 | K40: 0.899056138 | L40: 0.5 | M40: 109.9931301 | N40: 6.412383839 | O40: 8.892383839 | P40: 3.292383839 | Q40: 0.4533783659 | R40: 0.7076161608 | U40: 836.0823782 | V40: 2.78854014
E41: 1 | F41: 252.0265795 | G41: 5.76028831 | H41: 5.04028831 | I41: 6.64028831 | J41: 0.8711839811 | K41: 1.35971169 | L41: 1 | M41: 195.0078455 | N41: 6.072787375 | O41: 8.552787375 | P41: 2.952787375 | Q41: 0.6709619917 | R41: 1.047212625 | U41: 914.3608674 | V41: 2.903809898
E42: 1.5 | F42: 340.7000769 | G42: 5.445201636 | H42: 4.725201636 | I42: 6.325201636 | J42: 1.073063883 | K42: 1.674798364 | L42: 1.5 | M42: 265.8582056 | N42: 5.821754127 | O42: 8.301754127 | P42: 2.701754127 | Q42: 0.8318020773 | R42: 1.298245873 | U42: 986.1549874 | V42: 3.028764432
E43: 2 | F43: 416.4705282 | G43: 5.190481522 | H43: 4.470481522 | I43: 6.070481522 | J43: 1.236266189 | K43: 1.929518478 | L43: 2 | M43: 325.6653393 | N43: 5.561701275 | O43: 8.041701275 | P43: 2.441701275 | Q43: 0.9984211338 | R43: 1.558298725 | U43: =M37 -> 0 | V43: =R37 -> 0
E44: 3 | F44: 545.2425852 | G44: 4.886332383 | H44: 4.166332383 | I44: 5.766332383 | J44: 1.431138279 | K44: 2.233667617 | L44: 3 | M44: 425.7103409 | N44: 5.320681107 | O44: 7.800681107 | P44: 2.200681107 | Q44: 1.152845716 | R44: 1.799318893 | U44: =M38 -> 31.51123262 | V44: =R38 -> 0.3232236582
E45: 4 | F45: 655.4844869 | G45: 4.68515748 | H45: 3.96515748 | I45: 5.56515748 | J45: 1.56003351 | K45: 2.43484252 | L45: 4 | M45: 509.3745451 | N45: 5.097186765 | O45: 7.577186765 | P45: 1.977186765 | Q45: 1.296041286 | R45: 2.022813235 | U45: 59.52861601 | V45: 0.4504320295
E46: 5 | F46: 751.1752383 | G46: 4.448560244 | H46: 3.728560244 | I46: 5.328560244 | J46: 1.711624265 | K46: 2.671439756 | L46: 5 | M46: 580.9269925 | N46: 4.943381166 | O46: 7.423381166 | P46: 1.823381166 | Q46: 1.394586423 | R46: 2.176618834 | U46: 109.9931301 | V46: 0.7076161608
E47: 6 | F47: 836.0823782 | G47: 4.33145986 | H47: 3.61145986 | I47: 5.21145986 | J47: 1.78665192 | K47: 2.78854014 | L47: 6 | M47: 644.2226864 | N47: 4.819476419 | O47: 7.299476419 | P47: 1.699476419 | Q47: 1.473973716 | R47: 2.300523581 | U47: 195.0078455 | V47: 1.047212625
E48: 7 | F48: 914.3608674 | G48: 4.216190102 | H48: 3.496190102 | I48: 5.096190102 | J48: 1.860506669 | K48: 2.903809898 | L48: 7 | M48: 701.7052281 | N48: 4.735982394 | O48: 7.215982394 | P48: 1.615982394 | Q48: 1.527469363 | R48: 2.384017606 | U48: 265.8582056 | V48: 1.298245873
E49: 8 | F49: 986.1549874 | G49: 4.091235568 | H49: 3.371235568 | I49: 4.971235568 | J49: 1.940566574 | K49: 3.028764432 | L49: 8 | M49: 753.69313 | N49: 4.61300427 | O49: 7.09300427 | P49: 1.49300427 | Q49: 1.606262958 | R49: 2.50699573 | U49: 325.6653393 | V49: 1.558298725
U50: 425.7103409 | V50: 1.799318893
U51: 509.3745451 | V51: 2.022813235
U52: 580.9269925 | V52: 2.176618834
U53: 644.2226864 | V53: 2.300523581
O54: kobs (mM-2 h-1) | P54: R2 | U54: =M48 -> 701.7052281 | V54: 2.384017606
O55: =ROUND(SLOPE(V4:V55,U4:U55),5) -> 0.00267 | P55: =ROUND(RSQ(V4:V55,U4:U55),3) -> 0.937 | U55: =M49 -> 753.69313 | V55: 2.50699573
O56: (intercept not set to zero)

Sheet NBS order (side product) (hidden)
E1: BL-438 | J1: BL-439
E2: [SM]0 | F2: 40 mM | J2: [SM]0 | K2: 40 mM
E3: [PhCO2H]0 | F3: 0 mM | J3: [PhCO2H]0 | K3: 0 mM
E4: [NBS]0 | F4: 48 mM | G4: 12 equiv. | J4: [NBS]0 | K4: 32 mM | L4: 8 equiv.
E5: [(RO)2PO2H]0 | F5: 4 mM | G5: 1.0 equiv. | J5: [(RO)2PO2H]0 | K5: 4 mM | L5: 1.0 equiv.
E6: [(4-Tol)2CO]0 | F6: 20 mM | G6: ← internal standard | J6: [(4-Tol)2CO]0 | K6: 20 mM | L6: ← internal standard
E7: [P]0 | F7: 0 mM | J7: [P]0 | K7: 0 mM
E8: [succinimide]0 | F8: 0 mM | J8: [succinimide]0 | K8: 0 mM
E10: Experiment 16 | J10: Experiment 17
E11: t (hours) | F11: shifted t | G11: [NBS] (mM) | H11: area ratio | I11: [P] (mM) | J11: t (hours) | K11: shifted t | L11: [NBS] (mM) | M11: area ratio | N11: [P] (mM)
A12: order in NBS | B12: 0 | E12: =0/60 -> 0 | F12: 0 | G12: =48-I12 -> 48 | H12: 0 | I12: =(H12/$B$13)*0.04*1000 -> 0 | J12: =0/60 -> 0 | K12: 0 | L12: =32-N12 -> 32 | M12: 0 | N12: =(M12/$B$13)*0.02*1000 -> 0
A13: calibration gradient | B13: 20 | E13: =5/60 -> 0.08333333333 | F13: =F12+((G13+G12)/2)^$B$12*(E13-E12) -> 0.08333333333 | G13: =48-I13 -> 45.62493452 | H13: 2.375065479 | I13: =(H13/$B$13)*0.02*1000 -> 2.375065479 | J13: =1/60 -> 0.01666666667 | K13: =K12+((L13+L12)/2)^$B$12*(J13-J12) -> 0.01666666667 | L13: =32-N13 -> 30.90051105 | M13: 1.099488949 | N13: =(M13/$B$13)*0.02*1000 -> 1.099488949
E14: =10/60 -> 0.1666666667 | F14: =F13+((G14+G13)/2)^$B$12*(E14-E13) -> 0.1666666667 | G14: =48-I14 -> 45.07081093 | H14: 2.929189072 | I14: 2.929189072 | J14: =2.5/60 -> 0.04166666667 | K14: =K13+((L14+L13)/2)^$B$12*(J14-J13) -> 0.04166666667 | L14: 30.34410448 | M14: 1.655895516 | N14: 1.655895516
E15: =15/60 -> 0.25 | F15: 0.25 | G15: 44.73588246 | H15: 3.264117536 | I15: 3.264117536 | J15: =4/60 -> 0.06666666667 | K15: 0.06666666667 | L15: 29.9124524 | M15: 2.087547596 | N15: 2.087547596
E16: =30/60 -> 0.5 | F16: 0.5 | G16: 44.43583606 | H16: 3.564163938 | I16: 3.564163938 | J16: =7.5/60 -> 0.125 | K16: 0.125 | L16: 29.35104405 | M16: 2.648955948 | N16: 2.648955948
E17: =45/60 -> 0.75 | F17: 0.75 | G17: 44.33691178 | H17: 3.663088216 | I17: 3.663088216 | J17: =15/60 -> 0.25 | K17: 0.25 | L17: 28.78195979 | M17: 3.218040206 | N17: 3.218040206
E18: =60/60 -> 1 | F18: 1 | G18: 44.23768905 | H18: 3.762310948 | I18: 3.762310948 | J18: =30/60 -> 0.5 | K18: 0.5 | L18: 28.38728619 | M18: 3.612713812 | N18: 3.612713812
E19: =90/60 -> 1.5 | F19: 1.5 | G19: 44.17135242 | H19: 3.828647584 | I19: 3.828647584 | J19: =45/60 -> 0.75 | K19: 0.75 | L19: 28.17047381 | M19: 3.829526186 | N19: 3.829526186
E20: =120/60 -> 2 | F20: 2 | G20: 44.15216522 | H20: 3.847834783 | I20: 3.847834783 | J20: =60/60 -> 1 | K20: 1 | L20: 28.16244208 | M20: 3.837557916 | N20: 3.837557916
E21: =180/60 -> 3 | F21: 3 | G21: 44.17300607 | H21: 3.82699393 | I21: 3.82699393 | J21: =90/60 -> 1.5 | K21: 1.5 | L21: 27.99558974 | M21: 4.004410256 | N21: 4.004410256
E22: =240/60 -> 4 | F22: 4 | G22: 44.19670819 | H22: 3.803291811 | I22: 3.803291811 | J22: =120/60 -> 2 | K22: 2 | L22: 27.98049131 | M22: 4.019508695 | N22: 4.019508695
E23: =300/60 -> 5 | F23: 5 | G23: 44.13284638 | H23: 3.867153622 | I23: 3.867153622 | J23: =180/60 -> 3 | K23: 3 | L23: 27.92036881 | M23: 4.079631189 | N23: 4.079631189
E24: =360/60 -> 6 | F24: 6 | G24: 44.1104018 | H24: 3.889598201 | I24: 3.889598201 | J24: =240/60 -> 4 | K24: 4 | L24: 28.02651601 | M24: 3.973483985 | N24: 3.973483985
E25: =420/60 -> 7 | F25: 7 | G25: 44.09910152 | H25: 3.900898484 | I25: 3.900898484 | J25: =300/60 -> 5 | K25: 5 | L25: 27.95351513 | M25: 4.046484868 | N25: 4.046484868
E26: =480/60 -> 8 | F26: 8 | G26: 44.13778134 | H26: 3.862218658 | I26: 3.862218658 | J26: =360/60 -> 6 | K26: 6 | L26: 27.96853964 | M26: 4.031460358 | N26: 4.031460358
J27: =420/60 -> 7 | K27: 7 | L27: 27.94648145 | M27: 4.053518546 | N27: 4.053518546
J28: =480/60 -> 8 | K28: 8 | L28: 27.96265351 | M28: 4.037346486 | N28: 4.037346486
